Workbook

Sheet Cover Page
D1: Add company logo
N2: Version 24.2a (for incinerators) - 27/11/24
N4: Note that there is another version of this template available for co-incinerators
B8: Add photo
N13: Notes:
N14: This template may require adjustments by individual operators to meet specific reporting requirements as defined in the site Permit(s)
B29: Annual Performance Report 2024
B31: Permit EPR/NP3638ZS
B33: Peterborough Energy Recovery Facility
B37: Viridor Peterborough Ltd
B39: Year: | C39: 2024
B41: Address: | C41: Fourth Drove,Peterborough, PE1 5UR
B43: Tel: | C43: 01733 465284
B45: Email: | C45: Ellen.Raymond@viridor.com
B47: Prepared by: | C47: E Raymond | F47: Position: | G47: Technical Compliance Lead
B49: Approved by: | C49: C Knowles | F49: Position: | G49: Plant Manager
B51: Version: | C51: 1
B53: Issue Date: | C53: 2025-01-24

Sheet Contents
A1: =+'Cover Page'!$B$29 -> Annual Performance Report 2024 | E1: =+'Cover Page'!$B$33 -> Peterborough Energy Recovery Facility
A3: Contents | K3: Notes:
A4: Section | B4: Subject | H4: Page | K4: Section references and Page nos. to be inserted
B5: Facility Information | H5: 3 | K5: Sections and Subjects may require adjustment by individual operators to meet specific reporting requirements as defined in the sites Permit(s)
B6: Operational Data | H6: 4
B7: Operational Summary | H7: 6
B8: Performance Form 1 | H8: 7
B9: Energy Form 1 | H9: 8
B10: Permit Compliance | H10: 9
B11: Improvements | H11: 11
B12: Public Liaison | H12: 12
B13: Carbon dioxide and nitrous oxide emissions | H13: 13
B14: Residue Quality | H14: 15
B15: Emissions to Water | H15: 16
B16: Emissions to Air (periodically monitored) | H16: 17
B17: Emissions to Air (continuously monitored) | H17: 18
B18: Hydrogen Chloride emissions | H18: 19
B19: Sulphur Dioxide emissions | H19: 20
B20: Oxides of Nitrogen emissions | H20: 21
B21: Total Organic Carbon emissions | H21: 22
B22: Particulate Matter emissions | H22: 23
B23: Carbon Monoxide emissions | H23: 24
B24: Ammonia emissions | H24: 25
A27: Version Control
A28: Section | B28: Information | H28: Date
A35: Distribution
A36: Copy | B36: Name, Role | H36: No.
A45: This report is required under the Industrial Emissions Directive’s Article 55(2) requirements on reporting and public information on waste incineration plants and co-incineration plants, which require the operator to produce an annual report on the functioning and monitoring of the plant and make it available to the public.

Sheet Facility Info
A1: =+'Cover Page'!$B$29 -> Annual Performance Report 2024 | E1: =+'Cover Page'!$B$33 -> Peterborough Energy Recovery Facility
A3: Plant Description and Design | K3: Notes:
A5: Peterborough Energy from Waste (EfW) facility is located on the eastern side of Peterborough and occupies an area of 4.5 hectares within the Fengate Industrial Estate, approximately 2.5km south-east of the city centre. The ERF enables the city of Peterborough and area to divert about 110,000 (Variation to increased from 85,000) tonnes of residual waste from landfill each year. The facility is a single line plant which has a capacity for 110,000 tonnes per year and generates electricity (on average 8.5-8.8MWh) to be used internally and exported to the National Grid. The facility design and layout of the steam turbine allows for potential heat export to local users, a small district heating scheme was commissioned in March 2017 serving Dodson House (next door building owned by Peterborough City Council) although this is currently dormant. Viridor Energy Ltd are contracted by Viridor Peterborough Ltd to operate and maintain the plant on their behalf and that of Peterborough City Council. | K5: Include summary of plant design, design capacity, no. of combustion lines, electrical and heat capacity and any other general information that describes the facility, its location and purpose
A20: Summary of Operational Processes and Procedures
A22: Incoming refuse collection vehicles and bulk transport vehicles enter the site and proceed to the incoming weighbridge. After weighing in, the vehicles continue to the enclosed reception hall where they will discharge their load into the waste storage bunker. Vehicle loads are inspected randomly in the Tipping Hall to confirm the nature of incoming waste. Once vehicles have deposited their waste they leave the site via a second weighbridge. Potential emissions of odour and dust from the tipping hall and refuse bunkers are controlled by forced draught fans located above the refuse bunkers. These draw air from the bunker hall and reception area into the furnace to feed the combustion process, creating a slight negative pressure. An mist odour supression system complements this. The waste combustion takes place on a Volund Dynagrate the heat generated being used to create superheated steam which is used to drive the steam turbine and generate electricity. Heat from turbine bleeds can be used for combined heat and power systems and is also used for pre-heating of combustion air and operation of the deaerator to maximise efficiency. Condensing of the steam takes place via air cooled condensing system and the condensate cycles back around in a closed system (other than necessary top up). Emission control is via injection of ammonia into the furnace for NOx control via SNCR technology. At the end of the boiler and gas path lime and activated carbon are added to remove acidic gases, dioxins, furans and heavy metals before this is all filtered by a bag filter system which removes the lime and carbon added and particulates from the combustion process producing APCr. Emissions are measured continuously in stack and by extractive stack measurements as required by the environmental permit. Residues from the process, IBA and APCr are both sent to specialist reprocessing sites. IBA has metals removed for recyling and is reprocessed into IBAA (Incinerator Bottom Ash Aggregate). The APCr is sent to OCO Technology (formally Carbon8) who use accelerated cabonation technology to produce a carbon negative aggregate material which encapsulates the absorbed substances from the APCr. Maintenance is controlled by a CMMS system and consists of planned preventative maintenance (ppm), derived from both experience of the plant and OEM requirements, and reactive maintenance. An annual shutdown period happens each summer during which maintenance and statutory inspections are carried out. The plant operates a document control system meeting the requirements of the Viridor document management system and ISO 9001, 14001, 45001 and 50001 | K22: Include summary of key processes and procedures such as (but not limited to); waste reception, control rooms, grate, bed and boiler, energy & heat generation, cooling systems, residue management, emission controls, health and safety systems, maintenance

Sheet Operational Data
A1: =+'Cover Page'!$B$29 -> Annual Performance Report 2024 | E1: =+'Cover Page'!$B$33 -> Peterborough Energy Recovery Facility
A3: Operational Data
A4: Plant Size | B4: 110000 | D4: tonnes pa | F4: MWth | G4: 8.1 | H4: MWe | J4: Notes:
A5: No. of combustion lines | B5: 1 | D5: No. of Turbines: | F5: 1 | J5: * - RDF to include SRF
J6: ** - Combusted tonnage = tonnes delivered in period + (tonnes in bunker at start of period – tonnes in bunker at end of period), or equivalent calculation depending on plant type
A7: Waste types received | B7: Unit | C7: Q1 | D7: Q2 | E7: Q3 | F7: Q4 | G7: Year Total | H7: %
A8: Household / Local Authority (200301 & 200307) | B8: tonnes | C8: 10170.3 | D8: 11884.12 | E8: 12232.03 | F8: 11002.73 | G8: =SUM(C8:F8) -> 45289.18 | H8: =IF(G8>0,G8/$G$20,"-") -> 0.4963799448
A9: Commercial & Industrial (200301 & 200307) | C9: 9597.56 | D9: 7133.88 | E9: 5076.56 | F9: 6293.52 | G9: =SUM(C9:F9) -> 28101.52 | H9: 0.3079991942 | J9: *** - CHP plants only
A10: Hazardous | C10: 0 | D10: 0 | E10: 0 | F10: 0 | G10: 0 | H10: - | J10: **** Availability Definition: 'the availability of a line is to be calculated by the number of hours the line reported Continuously Monitored emission levels to the Regulator through the calendar year divided by the total number of hours in that year. The overall plant availability is calculated as the Mean of all lines in the plant. For clarity this includes periods of abnormal operation.' Rationale: The primary function of an Energy from Waste facility is the disposal of waste. It follows therefore that the availability of a plant is determined by the period of time a facility spends undertaking this activity.
A11: Clinical (180104) | C11: 2519.12 | D11: 3512.24 | E11: 2624.02 | F11: 2390.86 | G11: 11046.24 | H11: 0.1210693592
A12: Waste wood (biomass) | C12: 0 | D12: 0 | E12: 0 | F12: 0 | G12: 0 | H12: -
A13: Refuse Derived Fuel * - H'hold/LA | C13: 924.23 | D13: 668.03 | E13: 851.77 | F13: 1000.08 | G13: =SUM(C13:F13) -> 3444.11 | H13: 0.03774824653
A14: Refuse Derived Fuel * - C&I | C14: 397.86 | D14: 104.31 | E14: 220.82 | F14: 857.14 | G14: 1580.13 | H14: 0.01731859226
A15: Plastic (20 01 39) | C15: 385.26 | D15: 398.16 | E15: 364.16 | F15: 472.72 | G15: 1620.3 | H15: 0.0177588648
A16: Street Cleaning Residue (20 03 03) | C16: 46.28 | D16: 73.36 | E16: 25.36 | F16: 12.46 | G16: 157.46 | H16: 0.001725798217
A17: Other [Please specify]
A18: Other [Please specify]
A19: Other [Please specify] | G19: 0 | H19: -
A20: Total waste received | C20: =SUM(C8:C18) -> 24040.61 | D20: =SUM(D8:D18) -> 23774.1 | E20: =SUM(E8:E18) -> 21394.72 | F20: =SUM(F8:F19) -> 22029.51 | G20: 91238.94
A21: Rejected Waste | E21: 11.44 | G21: =SUM(C21:F21) -> 11.44 | H21: =IF(G21>0,G21/$G$20,"-") -> 0.0001253850604
A22: Unprocessed waste transferred out | G22: =SUM(C22:F22) -> 0 | H22: =IF(G22>0,G22/$G$20,"-") -> -
A23: Total waste combusted ** | C23: 23552.04 | D23: 23062 | E23: 21040 | F23: 23271.91 | G23: =SUM(C23:F23) -> 90925.95
J24: Password for protected cells A password has been set to prevent accidental editing of cells with formulae. If you still need to make an edit for some reason then the password = 1234
A25: Energy Usage / Export | B25: Unit | C25: Q1 | D25: Q2 | E25: Q3 | F25: Q4 | G25: Year Total | H25: KWh/te
A26: Power Generated | B26: MWh | C26: 16968 | D26: 16308 | E26: 15088 | F26: 16622 | G26: =SUM(C26:F26) -> 64986 | H26: =IF(G26>0,G26*1000/$G$23,"-") -> 714.7134564
A27: Power Exported | C27: 14855 | D27: 14004 | E27: 12958 | F27: 14565 | G27: =SUM(C27:F27) -> 56382 | H27: =IF(G27>0,G27*1000/$G$23,"-") -> 620.0870049
A28: Power Used on site | C28: 2085 | D28: 2235 | E28: 1986 | F28: 1974 | G28: =SUM(C28:F28) -> 8280 | H28: =IF(G28>0,G28*1000/$G$23,"-") -> 91.06311235
A29: Power Imported | C29: 28 | D29: 48 | E29: 144 | F29: 84 | G29: 304 | H29: =IF(G29>0,G29*1000/$G$23,"-") -> 3.34337997
A30: Parasitic Load | B30: % | C30: =IF(C26>0,1-C27/(C26+C29),"-") -> 0.1259708167 | D30: =IF(D26>0,1-D27/(D26+D29),"-") -> 0.1438004402 | E30: =IF(E26>0,1-E27/(E26+E29),"-") -> 0.1492909664 | F30: =IF(F26>0,1-F27/(F26+F29),"-") -> 0.1281575482 | G30: =IF(G26>0,1-G27/(G26+G29),"-") -> 0.136437433
A31: Thermal Energy Produced *** | B31: MWh | G31: =SUM(C31:F31) -> 0 | H31: =IF(G31>0,G31*1000/$G$23,"-") -> -
A32: Thermal Energy Exported *** | G32: 0 | H32: =IF(G32>0,G32*1000/$G$23,"-") -> -
A33: R1 value (if applicable) | B33: R1 | G33: 0.81 | J33: *Pending R1 report
A35: Waste Disposal & Recovery | B35: Unit | C35: Q1 | D35: Q2 | E35: Q3 | F35: Q4 | G35: Year Total | H35: % inputs
A36: APC Residues - produced | B36: tonnes | C36: 560.2 | D36: 567.3 | E36: 520.23 | F36: 591.89 | G36: =SUM(C36:F36) -> 2239.62 | H36: =IF(G36>0,G36/$G$23,"-") -> 0.02463125213
A37: IBA - produced | C37: 4751.2 | D37: 4672.9 | E37: 4267.5 | F37: 4464.52 | G37: =SUM(C37:F37) -> 18156.12 | H37: =IF(G37>0,G37/$G$23,"-") -> 0.1996802893
A38: Metals recycling | C38: 9.28 | D38: 3.68 | E38: 2.6 | F38: 0 | G38: =SUM(C38:F38) -> 15.56 | H38: =IF(G38>0,G38/$G$23,"-") -> 0.0001711282643
A39: 13 02 05* mineral based, non-chlorinated engine, gear & lubricating oils | C39: 1.8 | G39: =SUM(C39:F39) -> 1.8 | H39: =IF(G39>0,G39/$G$23,"-") -> 1.979632877e-05
A40: 13 05 03* Interceptor sludge | E40: 87.68 | G40: =SUM(C40:F40) -> 87.68 | H40: 0.0009643011703
A41: 17 09 04 Mixed construction/demolition | D41: 0.28 | E41: 0.56 | F41: 0.92 | G41: 1.76 | H41: 1.935641035e-05
A42: 17 08 02 gypsum-based construction materials other than those mentioned in 17 08 01 | D42: 1.42 | G42: 1.42 | H42: 1.561710381e-05
A43: 20 01 11 Textiles | F43: 0.3 | G43: 0.3 | H43: 3.299388128e-06
A44: 20 01 35* WEEE | C44: 0.2 | E44: 0.2274 | F44: 0.202 | G44: 0.6294 | H44: 6.922116294e-06
A45: 20 03 01 Mixed municiple | D45: 2.23 | E45: 0.52 | G45: 2.75 | H45: 3.024439118e-05
A46: Total | C46: =SUM(C36:C45) -> 5322.68 | D46: =SUM(D36:D45) -> 5247.81 | E46: =SUM(E36:E45) -> 4879.3174 | F46: =SUM(F36:F45) -> 5057.832 | G46: =SUM(C46:F46) -> 20507.6394
A48: Raw Material Usage | B48: Unit | C48: Q1 | D48: Q2 | E48: Q3 | F48: Q4 | G48: Year Total | H48: kg or Ltr /te
A49: Mains Water | B49: ltrs | C49: 11740000 | D49: 11518000 | E49: 13857000 | F49: 13163000 | G49: =SUM(C49:F49) -> 50278000 | H49: =IF(G49>0,G49/$G$23,"-") -> 552.9554544
A50: Other Water | B50: ltrs | C50: 421000 | D50: 86000 | E50: 94000 | F50: 98000 | G50: 699000 | H50: =IF(G50>0,G50/$G$23,"-") -> 7.687574339
A51: Ammonia | B51: kgs | C51: 95270 | D51: 88000 | E51: 70090 | F51: 73320 | G51: 326680 | H51: 3.592813713
A52: Urea | B52: kgs | G52: - | H52: -
A53: Lime | B53: kgs | C53: =373.32*1000 -> 373320 | D53: =334.38*1000 -> 334380 | E53: =313.07*1000 -> 313070 | F53: =376.64*1000 -> 376640 | G53: =SUM(C53:F53) -> 1397410 | H53: 15.36865988
A54: Carbon | B54: kgs | C54: 6870 | D54: 7600 | E54: 6580 | F54: 11260 | G54: =SUM(C54:F54) -> 32310 | H54: 0.3553441014
A55: Fuel oil - (Burners) | B55: ltrs | C55: 30039 | D55: 23654 | E55: 87732 | F55: 112371 | G55: 253796 | H55: 2.791238365
A56: Fuel oil - (Mobile plant & other) | B56: ltrs | C56: 13332 | D56: 9692 | E56: 3921 | F56: 5512 | G56: 32457 | H56: =IF(G56>0,G56/$G$23,"-") -> 0.3569608016
G57: 0
A59: Summary | B59: Line/Unit | C59: Q1 | D59: Q2 | E59: Q3 | F59: Q4 | G59: Year Total | I59: Hrs in year
A60: Availability of waste combustion by line, hrs **** | B60: =+B5 -> 1 | C60: 2118 | D60: 2054.2 | E60: 1869.8 | F60: 2038 | G60: =SUM(C60:F60) -> 8080 | H60: =+G60/$I$60 -> 0.9198542805 | I60: =24*366 -> 8784
B61: 2 | G61: 0 | H61: =+G61/$I$60 -> 0
B62: 3 | G62: 0 | H62: 0
B63: 4 | G63: 0 | H63: 0
B64: 5 | G64: =SUM(C64:F64) -> 0 | H64: 0
A65: Overall Availability, mean avg. of all lines, hrs | C65: =AVERAGE(C60:C64) -> 2118 | D65: =AVERAGE(D60:D64) -> 2054.2 | E65: 1869.8 | F65: 2038 | G65: =SUM(G60:G64) -> 8080 | H65: =+G65/$I$60 -> 0.9198542805
A66: Hours of turbine operations, hrs | B66: 1 | C66: 2130.9 | D66: 2085.8 | E66: 1886.5 | F66: 2041 | G66: 8144.2 | H66: =+G66/$I$60 -> 0.9271630237
A67: Hours of turbine operations, hrs | B67: 2 | G67: 0 | H67: 0
A68: Hours of heat / steam export | G68: 0 | H68: =IF(B68>0,G67/I60,"n/a") -> n/a
A69: Net Calorific Value of waste | B69: MJ/kg | C69: 9.696666667 | D69: 9.45 | E69: 9.696666667 | F69: 9.676666667 | G69: =AVERAGE(C69:F69) -> 9.63
A70: Abnormal Events | B70: qty. | C70: 0 | D70: 2 | E70: 0 | F70: 0 | G70: 2 | H70: =IF(G70>0,"yes","no") -> yes
A71: Abnormal operation | B71: hours | C71: 0 | D71: 4 | E71: 0 | F71: 0 | G71: 4 | H71: =+(G71)/I60 -> 0.0004553734062
A72: Permit Breaches | B72: qty. | C72: 1 | D72: 1 | E72: 2 | F72: 0 | G72: 4 | H72: =IF(G72>0,"yes","no") -> yes

Sheet Operational Summary
A1: =+'Cover Page'!$B$29 -> Annual Performance Report 2024 | E1: =+'Cover Page'!$B$33 -> Peterborough Energy Recovery Facility
A3: Summary of Plant Operations and Maintenance during the reporting year | K3: Notes:
A5: The boiler availability for 2024 was 92%, with a turbine availability of 92.7%. There was no planned maintenance outage in 2024 however, there were several incidences of tube leaks and grate repairs which reduced overall availability. See a breakdown of each quarter below, a detailed list of shutdowns is included in the table below (not including 'hot standby shutdowns') Q1:- There was a total boiler availability of 97% in Q1. Minor shutdowns included grab failures, feed chute blockages and ash discharger blockages. There was an emissions exceedance on January 22nd for a half hour average of SO2. See details in 'Permit Compliance' tab. Q2:- Total boiler availability in Q2 was 94.1%. There were several shutdowns due to grate or riddling repairs and one incident of a tube leak during the quarter. There was one emission exceedance on 24th May for a half hour average of SO2. See details in 'Permit Compliance' tab. There were two occurancse of abnormal operation. The first was on 24th May where the daily average for dust emissions was 5.74 mg/m3 due to elevated lime dosing to mitigate high SO2 emissions. The event lasted 2 hours. The second event was on June 18th for high dust emissions udring baghouse maintenance. Q3:- The total boiler availability in Q3 was 84.7%, this is the lowest quarter availability in the year. This is attributed to the three tube leaks throughout the quarter, resulting in several days downtime to allow for repair. Other minor shutdowns include crane repairs and an ash discharger blockage. There were two permit breaches in Q3, the first was on 23rd July for a half hourly average exceedance of TOC. The second was on 9th September for a half hourly average exceedance of SO2. Waste inspections throughout the quarter highlighted non-compliant waste being brought to site by one supplier. As a result, 11.4 tonnes of incoming waste was quaratined and rejected. Q4:- The total boiler availability in Q4 was 92.3%. Shutdowns included a grate riddling blockage, an ash discharger blockage and one tube leak requiring downtime for maintenance. There were no permit breaches or abnormal operation occurences in Q4. Thorough waste inspections continued in Q4, with non-conforming waste being rejected from site (textiles and mixed construction waste). | K5: Include summary of key operational and/or maintenance activity undertaken in the year, such as any major component upgrades and/or replacements
A30: Summary of Residue Handling for the reporting year
A32: Johnsons Agrgregatescollect thee IBA. They remove and recycle the ferrous and non-ferrous metals and then create IBAA (Incinerator Bottom Ash Aggregate) from the remaining material. Their Aggregates team then utilise this in various construction and highways projects. APCr is collected by direct transfer from the on site silo into transport tanker by Grundons and goes to the O.C.O Technology Ltd (formally Carbon8) site at Brandon (EPR/JP3332FK) (unless not possible due to operational issues at OCO in which case it is directed to one of their other plants) where it is taken through their accelerated carbonation technology. These carbonated wastes are blended with binders and fillers and pellitised to form an aggregate. In November, to support the NOx trials, additional IBA and APCr samples were taken for comparative analysis, including Ammoniacal Nitrogen Sampling. These samples were sent to WRc and nrm. PBR ERF was also involved in trials of POP containing plastics and their impact on emissions and residues. These extra samples were sent to Wrc 18th September Industrail Safety Solutions carrying out POPS dust monitoring during shredding activity. | K32: Include in here a summary of residue handling regimes and destinations
A44: =+'Cover Page'!C39 -> 2024 | B44: Plant shut-downs
A45: Date | B45: Reason for shut-down | K45: Provide a very brief reason for plant shut-down e.g. "Shut-down prior to major outage"; "Emergency shut-down due to boiler tube leak" There is no need to include periods of hot-standby here (e.g. to clear feed chute hopper blockages).
A46: 2024-02-24 | B46: Shutdown due to feed chute blockage
A47: 2024-02-25 | B47: Shutdown due to ash discharger blockage
A48: 2024-04-20 | B48: Shutdown due to riddlings system failure
A49: 2024-05-01 | B49: Shutdown for Grate repairs and tube leak repair
A50: 2024-06-18 | B50: Shutdown for grate riddling repairs
A51: 2024-07-16 | B51: Shutdown for tube leak
A52: 2024-08-12 | B52: Shutdown for tube leak
A53: 2024-09-24 | B53: Shutdown for tube leak
A54: 2024-11-28 | B54: Shutdown due to ash blockage
A55: 2024-12-11 | B55: Shutdown for tube leak

Sheet Perf. Form 1
A1: =+'Cover Page'!C39 -> 2024 | B1: Annual Reporting Performance Form 1
A3: =+'Cover Page'!B31 -> Permit EPR/NP3638ZS | F3: Operator: | G3: =+'Cover Page'!B37 -> Viridor Peterborough Ltd
A4: Facility: | B4: =+'Cover Page'!B33:I33 -> Peterborough Energy Recovery Facility | F4: Form: | G4: Performance 1
A6: Reporting Period from: | D6: 2024-01-01 | F6: to: | G6: 2024-12-31
A8: =+A1 -> 2024 | B8: Annual Reporting of Waste Disposal and Recovery
A9: Waste Description | C9: Disposal Route(s) | E9: Disposal Tonnes | G9: Recovery Tonnes | I9: % / tonne of waste incinerated
A10: 1) Hazardous Wastes
A11: APC Residues | C11: OCO Tecnology | G11: ='Operational Data'!G36 -> 2239.62 | I11: =IF((E11+G11)>0,(E11+G11)/'Operational Data'!$G$23, "-") -> 0.02463125213
A12: IBA | C12: Johnsons | G12: 0 | I12: =IF((E12+G12)>0,(E12+G12)/'Operational Data'!$G$23, "-") -> -
A13: ='Operational Data'!A39 -> 13 02 05* mineral based, non-chlorinated engine, gear & lubricating oils | C13: LWOL | G13: ='Operational Data'!G39 -> 1.8 | I13: =IF((E13+G13)>0,(E13+G13)/'Operational Data'!$G$23, "-") -> 1.979632877e-05
A14: ='Operational Data'!A40 -> 13 05 03* Interceptor sludge | C14: Augean | G14: ='Operational Data'!G40 -> 87.68 | I14: =IF((E14+G14)>0,(E14+G14)/'Operational Data'!$G$23, "-") -> 0.0009643011703
A15: ='Operational Data'!A44 -> 20 01 35* WEEE | C15: Blackmore Ricotech | G15: ='Operational Data'!G44 -> 0.6294 | I15: =IF((E15+G15)>0,(E15+G15)/'Operational Data'!$G$23, "-") -> 6.922116294e-06
I16: =IF((E16+G16)>0,(E16+G16)/'Operational Data'!$G$23, "-") -> -
A17: Total Hazardous Waste | E17: =SUM(E11:F16) -> 0 | G17: =SUM(G11:H16) -> 2329.7294 | I17: =IF((E17+G17)>0,(E17+G17)/'Operational Data'!$G$23, "-") -> 0.02562227175
A19: 2) Non-Hazardous Wastes
A20: IBA | C20: Johnsons | E20: 476.6 | G20: ='Operational Data'!G37-476.6 -> 17679.52 | I20: =IF((E20+G20)>0,(E20+G20)/'Operational Data'!$G$23, "-") -> 0.1996802893
A21: Ferrous Metal | C21: Simms | G21: ='Operational Data'!G38 -> 15.56 | I21: =IF((E21+G21)>0,(E21+G21)/'Operational Data'!$G$23, "-") -> 0.0001711282643
A22: ='Operational Data'!A41 -> 17 09 04 Mixed construction/demolition | C22: Bourne Skips | G22: ='Operational Data'!G41 -> 1.76 | I22: =IF((E22+G22)>0,(E22+G22)/'Operational Data'!$G$23, "-") -> 1.935641035e-05
A23: ='Operational Data'!A42 -> 17 08 02 gypsum-based construction materials other than those mentioned in 17 08 01 | C23: Bourne Skips | G23: ='Operational Data'!G42 -> 1.42 | I23: =IF((E23+G23)>0,(E23+G23)/'Operational Data'!$G$23, "-") -> 1.561710381e-05
A24: ='Operational Data'!A43 -> 20 01 11 Textiles | C24: Bourne Skips | G24: ='Operational Data'!G43 -> 0.3 | I24: =IF((E24+G24)>0,(E24+G24)/'Operational Data'!$G$23, "-") -> 3.299388128e-06
A25: ='Operational Data'!A45 -> 20 03 01 Mixed municiple | C25: PCC | G25: ='Operational Data'!G45 -> 2.75 | I25: =IF((E25+G25)>0,(E25+G25)/'Operational Data'!$G$23, "-") -> 3.024439118e-05
I26: =IF((E26+G26)>0,(E26+G26)/'Operational Data'!$G$23, "-") -> -
A27: Total Non-Hazardous Waste | E27: =SUM(E20:F26) -> 476.6 | G27: =SUM(G20:H26) -> 17701.31 | I27: =IF((E27+G27)>0,(E27+G27)/'Operational Data'!$G$23, "-") -> 0.1999199348
A28: TOTAL WASTE | E28: =+E27+E17 -> 476.6 | G28: =+G27+G17 -> 20031.0394 | I28: =IF((E28+G28)>0,(E28+G28)/'Operational Data'!$G$23, "-") -> 0.2255422066
A30: Operator’s comments :
A34: =+A1 -> 2024 | B34: Annual Reporting of Water and Other Raw Material Usage
A35: Raw Material | E35: Usage | G35: Unit | H35: Specific Usage | J35: Unit
A36: Mains Water | E36: =+'Operational Data'!G49/1000 -> 50278 | G36: m3 | H36: =IF(E36>0,E36/'Operational Data'!$G$23,"-") -> 0.5529554544 | J36: m3/te
A37: Total Water | E37: =+'Operational Data'!G50+'Operational Data'!G49/1000 -> 749278 | G37: m3 | H37: =IF(E37>0,E37/'Operational Data'!$G$23,"-") -> 8.240529794 | J37: m3/te
A38: Urea / Ammonia | E38: =+'Operational Data'!G51 -> 326680 | G38: kg | H38: =IF(E38>0,E38/'Operational Data'!$G$23,"-") -> 3.592813713 | J38: kg/te
A39: Activated Carbon | E39: ='Operational Data'!G54 -> 32310 | G39: kg | H39: =IF(E39>0,E39/'Operational Data'!$G$23,"-") -> 0.3553441014 | J39: kg/te
A40: Lime / hydrated lime / Sodium Bicarb. | E40: ='Operational Data'!G53 -> 1397410 | G40: kg | H40: =IF(E40>0,E40/'Operational Data'!$G$23,"-") -> 15.36865988 | J40: kg/te
A42: Operator’s comments :
A46: =+A34 -> 2024 | B46: Annual Reporting of other performance indicators
A47: Parameter | C47: Results by Line
C48: A1 | D48: A2 | E48: A3 | F48: A4 | G48: A5 | I48: Turbine 1 | J48: Turbine 2
A49: Operating hours for the year, hours | C49: ='Operational Data'!G60 -> 8080
A50: Number of periods of abnormal operation, qty. | C50: ='Operational Data'!G70 -> 2
A51: Cumulative hours of abnormal operation for this year, hours | C51: ='Operational Data'!G71 -> 4
A53: Operator’s comments :
A57: Signed: | B57: E. Raymond | G57: Date: | H57: 2024-01-10

Sheet Energy Form 1
A1: =+'Cover Page'!C39 -> 2024 | B1: Annual Reporting of Energy Usage/Export
A3: =+'Cover Page'!B31 -> Permit EPR/NP3638ZS | F3: Operator: | G3: =+'Cover Page'!B37 -> Viridor Peterborough Ltd
A5: Facility: | B5: =+'Cover Page'!B33:I33 -> Peterborough Energy Recovery Facility | F5: Form: | G5: Energy 1
A7: Reporting Period from: | D7: =+'Perf. Form 1'!D6:E6 -> 2024-01-01 | F7: to: | G7: =+'Perf. Form 1'!G6:H6 -> 2024-12-31
A9: Energy Source | D9: Energy Usage | F9: Unit | G9: Specific Usage (KWh/tonne incinerated
A10: Electricity Produced | D10: =+'Operational Data'!G26 -> 64986 | F10: MWh | G10: =+'Operational Data'!H26 -> 714.7134564
A11: Electricity Imported | D11: =+'Operational Data'!G29 -> 304 | F11: MWh | G11: =+'Operational Data'!H29 -> 3.34337997
A12: Electricity Exported | D12: =+'Operational Data'!G27 -> 56382 | F12: MWh | G12: =+'Operational Data'!H27 -> 620.0870049
A13: Gas Oil (Fuel oil & White diesel) | D13: ='Operational Data'!G55+'Operational Data'!G56 -> 286253 | F13: tonnes
A14: Steam/hot water exported | D14: =+'Operational Data'!G32 -> 0 | F14: GWh | G14: =+'Operational Data'!H32 -> -
A18: Operator’s comments :
A29: Signed: | B29: E. Raymond | G29: Date: | H29: 2024-01-10

Sheet Permit Compliance
A1: =+'Cover Page'!$B$29 -> Annual Performance Report 2024 | E1: =+'Cover Page'!$B$33 -> Peterborough Energy Recovery Facility
A3: Summary of Permit Compliance
A5: Compliance with permit limits for continuously monitored pollutants
A7: The plant met its emission limits as shown in the table below:
A8: Substance | C8: Percentage time compliant during operationNote 1 | L8: Notes: | O8: Day | P8: year | Q8: %
C9: Half-hourly limit | F9: Daily limit | L9: Note 1: Please report to 2 decimal places, i.e. xx.xx% Note 2: Please enter into this table any permit non-compliances that the EA has given a CCS score for. Please also enter any other non-compliances which you have notified to the EA (e.g. ELV exceedances) but which have not yet been assessed by the EA. There is no need to enter any notifications which were subsequently assessed by the EA not to be permit breaches. Note 3: Please enter information here (rather than just referencing the notifications that were sent to the EA) including where relevant the incineration line reference, pollutant and value of the measured result for any ELV exceedances. | M9: SO2 | N9: 3 | O9: =2*24 -> 48 | P9: =O9*366 -> 17568 | Q9: =(N9/P9)*100 -> 0.01707650273 | R9: =100-Q9 -> 99.9829235
A10: Particulates | C10: 1 | F10: 1 | M10: VOC | N10: 1 | O10: =2*24 -> 48 | P10: =O10*366 -> 17568 | Q10: =(N10/P10)*100 -> 0.005692167577 | R10: =100-Q10 -> 99.99430783
A11: Oxides of nitrogen | C11: 1 | F11: 1
A12: Sulphur dioxide | C12: 0.9998 | F12: 1
A13: Carbon monoxide | C13: 100% 95% of 10-min averages | F13: 1
A14: Total organic carbon | C14: 0.9999 | F14: 1
A15: Hydrogen chloride | C15: 1 | F15: 1
A16: Hydrogen fluoride | C16: 1 | F16: 1
A19: Summary of non-compliances under the permit Note 2
A20: Date | B20: Summary of non-compliance Note 3 | D20: Reason | G20: Measures taken to prevent reoccurrence | H20: CCS score if applicable*
H21: Impact | I21: Root cause
A22: 22nd January | B22: SO2 - 30 min average of 312.4mg/Nm3 at 11:30 - 11:59. | D22: Mitigation systems responding correctly, cause thought to be waste related | G22: Lime abatement system taken into manual control. Delivery rate of lime was increased to 100% maximum rate. Front end waste achieving good blending and shredding. Abatement system operating well, good deliver and flow of lime. | H22: 0.1
A23: 24th May | B23: Dust - Daily average of 5.74mg/Nm3. - Abnormal Operation | D23: Baghouse failure | G23: Baghouses isolated alternately to determine area of mitigation failure. Baghouse 1 isolated and remedial works scheduled for w/c 27th June | H23: 0
A24: 24th MAY | B24: SO2 breach 1/2 limit 200mg/Nm3. Measured 1/2 breach was 233.6mg/Nm3 at 04:59 hours | D24: Mitigation systems responding correctly, asumption was that the filter bags within baghouses were failing. Invetigation confirmed damaged bags- evidence of scorching through friction. | G24: Planned remedial work for w/c 27th June. Design changes for consideration and potential implementaion during outage April 2025 | H24: 0.1
A25: 23rd July | B25: VOC - 30 min average of 23.7 mg/m3 at 20:30 to 20:59 | D25: Large explosions on the grate cause reactive high CO,SO2 & TOC. The CO & SO2 were brought under control by putting secondary air into manual, but theTOC was not retrievable. | G25: Explosion was caused by pressurised gas bottles combusting on the grate, and possible the introduction of indurial cleaning | H25: 0.1
A26: 9th September | B26: SO2 - 30 min average of 237.5 mg/Nm3 at 13:30 to 13:59 | D26: Cause considered to be plasterboard and gypsum, following immediate intrusive examinationof waste from provider. | G26: The waste recovered was quarantined and collected by the waste supplier under a new WTN. Communications to the contract manager about educating the waste suppliers and checking their EWC codes as per contractual agreement for correctness. | H26: 0.1
A29: *If the Environment Agency (EA) has given a Compliance Classification Scheme (CCS) score due to a permit non-compliance it should be entered here (CCS4 = No impact; CCS3 = Minor impact; CCS2 = Significant impact; CCS1 = Major impact). If the EA has not yet assessed a non-compliance which you have notified to them, these columns should be left blank.
A31: Summary of any complaints received and actions to taken to resolve them.
A32: Date | B32: Summary of complaint [including Line/Reference] | E32: Reason (including whether substantiated by the operator or the EA) | H32: Measures taken to prevent reoccurrence
B33: None

Sheet Improvements
A1: =+'Cover Page'!$B$29 -> Annual Performance Report 2024 | E1: =+'Cover Page'!$B$33 -> Peterborough Energy Recovery Facility
A3: Summary of Plant Improvements
A5: Summary of any efficiency improvements that have been completed within the year.
A6: Energy Group identified the main stairwell in the admin building to replaced the bulk head and fluorescent lighitng with LED's. Timers of some electrical domestic items being used, ie coffee machines.
A12: Summary of any permit improvement conditions that have been completed within the year and the resulting environmental benefits.
A13: The diesel tank/yellow plant fuel distribution bund was previously open to weather conditions and the risk of rain fall filling the bund and over flowing, regular contractural cleaning in place to mitigate that risk. TIn September, the bund now has a cover to reduce the risk of the bund filling with rainwater and becoming ineffective in the event of a spill.
A20: Summary of any changes to the plant or operating techniques which required a variation to the permit and a summary of the resulting environmental impact.
A21: None
A26: Summary of any other improvements made to the plant or planned to be made and a summary of the resulting environmental benefits.
A27: None

Sheet Public Liasion
A1: =+'Cover Page'!$B$29 -> Annual Performance Report 2024 | E1: =+'Cover Page'!$B$33 -> Peterborough Energy Recovery Facility
A3: Details of Public & Stakeholder Liaison
A5: Summary of events held during the reporting year.
A6: Date | C6: Description
A7: Bi Monthly | C7: Client liaisons with Peterborough City Council
A9: Planned visits for April and November and as requested. | C9: Heritage open days for general public. Organised school/college tours.
A11: Quarterly | C11: Viridor in Peterborough Meetings for the Viridor in Peterborough community fund - funding local projects based around sustainability, local need, community involvement, value for money and education
C13: We will hold community liaison meetings on request after no attendance by local companies or residents since August 2016.
A16: List of events planned for next year
A17: Date | C17: Description
A18: Bi Monthly | C18: Client liaisons with Peterborough City Council
A20: Various | C20: Community and educational visits arranged through the visitor centre
A21: Quarterly | C21: Viridor in Peterborough Meetings for the Viridor in Peterborough community fund - funding local projects based around sustainability, local need, community involvement, value for money and education
A26: If you wish to be involved in the public liasion programme, please contact Hayley Janceski hjanceski@viridor.co.uk tel/ 07880 299 734

Sheet CO2 N2O
A1: =+'Cover Page'!$B$29 -> Annual Performance Report 2024 | C1: =+'Cover Page'!$B$33 -> Peterborough Energy Recovery Facility
A3: Carbon dioxide emissions and biogenic content of waste inputs | F3: Notes:
A5: Carbon dioxide emissions (all types of plant)
B6: Annual mass of carbon dioxide released | C6: tonnes | D6: 114745.57
B7: Annual mass of carbon dioxide released per tonne of waste burned | C7: t CO2 / t waste | D7: =D6/('Operational Data'!G23) -> 1.261967238
B8: Annual mass of carbon dioxide released per MWh of energy exported | C8: t CO2 / MWh export | D8: =D6/('Operational Data'!G27) -> 2.035145436
B9: Description of how annual carbon dioxide mass emission has been calculated. See Note 1 | C9: A mass emission calculation using the percent of CO2 measured in accordance with EN14181 and the stack flow measured in accordance with 16911-2. | F9: Note 1: All permits require operators to continuously monitor CO2 to EN14181 and flow to BS EN 16911-2 (unless otherwise agreed in writing). Operators must therefore use the results from these instruments to calculate their annual CO2 emissions. Where an operator does not have a flow meter calibrated to BS EN 16911-2, the averaged flow measurement from that year's periodic monitoring can be used instead. If the plant does not have calibrated CO2 CEMS, a suitably justified emissions factor can be used.
A10: Nitrous oxide emissions (only plants which use ammonia or urea to abate NOx emissions)
B11: Annual mass emissions of nitrous oxide | C11: tonnes N2O | D11: 0.07
B12: Description of how annual nitrous oxide mass emission has been calculated See Note 2 | C12: A mass emission calculation using the concentration of Nitrous Oxide measured in accordance with EN14181 and the stack flow measured in accordance with 16911-2. | F12: Note 2: All permits require operators to continuously monitor N2O to EN14181 and flow to BS EN 16911-2, unless otherwise agreed in writing. Operators must therefore use the results from these instruments to calculate their annual N2O emissions. Where an operator does not have a flow meter calibrated to BS EN 16911-2, the averaged flow measurement from periodic monitoring can be used instead. If the plant does not have calibrated N2O CEMS, data from periodic monitoring or a suitably justified emissions factor can be used instead.
A13: Total annual carbon dioxide + nitrous oxide emissions. See Note 3. | C13: tonnes CO2e | D13: =D6+(D11*265) -> 114764.12 | F13: Note 3: Total annual carbon dioxide and nitrous oxide emissions reported as carbon dioxide equivalent where 1 tonne nitrous oxide is equivalent to 265 tonnes carbon dioxide.
A14: Biogenic CO2 emissions (See Note 4) | F14: Note 4: Only plants combusting residual municipal waste, refuse derived fuel or solid recovered fuel need complete this section.
B15: Percentage of total carbon dioxide emissions arising from biogenic waste | C15: % | D15: 0.4954
B16: No. of measurements undertaken | C16: Number | D16: 2
B17: Description of how percentage biogenic carbon dioxide emissions have been measured or calculated. See Note 5 | C17: Result of C14 sampling (Installed sampler). Figure is the annual average figure from the monthly cartiridge laboratory results. | F17: Note 5: The results from C14 sampling should be used if this is carried out at the plant (either via an installed sampler or from spot samples). Otherwise, as an approximation (and in lieu of any more accurate metrics which may be developed in future), the measured or estimated biogenic fraction by net calorific value (see Note 6) can be assumed to be the same as the biogenic CO2 fraction of the total CO2 emissions from the plant.
A18: Biogenic fraction of waste feedstock (See Note 4)
B19: Yearly average biogenic percentage of the waste by net calorific value (NCV) | C19: % | D19: 46.8
B20: Description of how biogenic percentage (by NCV) has been calculated or estimated. See Note 6 | C20: Waste Sampling The method used is the selective dissolution method as defined in BS EN ISO 21644:2021. This method involves treatment of the sample with concentrated sulphuric acid and hydrogen peroxide. Generally, the biomass in the sample will selectively dissolve leaving a non-biomass residue. The original mass of sample and mass of residue are measured. The result is calculated from the mass values and the ash content to give a result in %. | F20: Note 6: If C14 sampling is carried out at the plant, the methodology set out in the embedded document entitled "Renewable Energy Association Energy Content of Fuels - Description of Method" embedded below can be used to calculate the biogenic percentage by net calorific value. Otherwise, data from waste sampling or BIOMA software can be used; or if none of these are available, an estimated figure with justification or a figure assumed on the basis of up-to-date industry data can be used.
B21: Yearly average biogenic percentage of the waste by mass | C21: % | D21: 43
B22: If waste sampling undertaken, no. of samples used to ascertain average biogenic percentages above | C22: Number | D22: 1
B23: Description of how biogenic percentage (by mass) has been calculated or estimated. See Note 7 | C23: Waste Sampling | F23: Note 7: Where available, data from waste sampling should be used; otherwise, an estimated figure with justification can be used, or a figure assumed on the basis of up-to-date industry data.
B25: Comments:

Sheet Residue Quality
A1: =+'Cover Page'!$B$29 -> Annual Performance Report 2024 | E1: =+'Cover Page'!$B$33 -> Peterborough Energy Recovery Facility
A3: Residue Quality Monitoring Requirements
A5: Summary of monitoring undertaken and compliance
A6: IBA undergoes quarterly sampling as required by permit condition 3.5.1c and table 3.5 including TOC, dioxins & furans. TOC has a limit of <3%.
A8: 24 samples of IBA are taken each year (including the 4 permit complaince samples) to undergo basic hazard analysis as required by the ESA protocol.
A10: APCr is sampled quarterly as per permit condition 3.5.1c and table 3.5
A13: Commentary on any specific events
A14: Date & Event | C14: Description
A23: Residue Quality Monitoring Results
A24: Parameter (unit) | C24: Limit* | D24: Normal Operation
D25: Bottom ash | F25: APC Residues
A26: Loss on Ignition (average %) | C26: - | D26: 4.8
A27: Total Organic Carbon (average %) | C27: <3% | D27: 1
A28: No. of Assessments Undertaken | C28: --- | D28: 4 permit compliance 20 ESA hazard assessments | F28: 4
A29: No. of Hazardous Results | C29: --- | D29: nil
A30: * The permit will specify a limit of either 5% loss on ignition or 3% total organic carbon. If both are measured anyway, please enter the results here, even where the limit does not apply.
A32: Comments :
A33: Additional 'free lime' analysis added to the APCr sampling from July 2024. 4th September 2024 Lime supplier changed. Usualsupplier 'Singlton Birch (SB)' ceased production 4th September. New supplier from 'Ultra Lime', from Buxton. Specification is different, densisty of lime is 400-500kg/m3, compared to SB 300kg/m3.

Sheet Water
A1: =+'Cover Page'!$B$29 -> Annual Performance Report 2024 | E1: =+'Cover Page'!$B$33 -> Peterborough Energy Recovery Facility
A3: Emissions to Water
A5: Summary of monitoring undertaken and compliance
A6: Samples and visual checks undertaken monthly. The Penstocks remains closed unless otherwise directed.
A8: Qtr PPM operational checks on the penstock gate valves.
A13: Commentary on any specific events
A14: Date & Event | C14: Description
A22: Emissions to Water / Sewer
A23: Parameter | D23: Monitoring Frequency | F23: Limit | G23: Target | H23: Max. | I23: Average
A24: W1 Emission to water course - No limit set. Uncontaminated water, free of visible oil and grease | D24: - | F24: None
A25: S1 Emission to Anglican Water - No limits set in permit | D25: - | F25: None

Sheet Air (periodic)
A1: =+'Cover Page'!$B$29 -> Annual Performance Report 2024 | E1: =+'Cover Page'!$B$33 -> Peterborough Energy Recovery Facility
A3: Emissions to Air (periodically monitored)
A5: Summary of monitoring undertaken, standards used and compliance | K5: Notes:
A6: Biannual 1: 8th to 13th April 2024 Biannual 2: 7th to 9th October 2024 Results shown are the average of the biannual 1 and biannual 2 samples | K6: Template may require adjustment for any bespoke monitoring requirements of permit - please also check that all default ELV values, reference periods and the stated oxygen reference value match those for your plant, and edit if necessary!
A9: Results of emissions to air that are periodically monitored - oxygen reference 11%
A10: Substance | C10: Ref. Period | D10: Emission Limit Value | F10: Average | K10: User to add additional tables as necessary, depending on whether quarterly or bi-annual reporting is required for the compliance year
F11: Line 1 | Q11: Bi 1 | R11: Bi 2 | S11: AVERAGE
A12: Hydrogen fluoride | C12: 1 hr | D12: 1 mg/m3 | F12: 0.42 | O12: Hydrogen fluoride | Q12: 0.8 | R12: 0.04 | S12: =AVERAGE(Q12:R12) -> 0.42
A13: Cd and Tl and their compounds | C13: 0.5-8hrs | D13: 0.02 mg/m3 | F13: 0.0049 | O13: Cd and Tl and their compounds | Q13: 0.0005 | R13: 0.0093 | S13: =AVERAGE(Q13:R13) -> 0.0049
A14: Hg and its compounds | C14: 0.5-8hrs | D14: 0.02 mg/m3 | F14: 0.00265 | O14: Hg and its compounds | Q14: 0.003 | R14: 0.0023 | S14: 0.00265
A15: Sb, As, Pb, Cr, Co, Cu, Mn, Ni, V and their compounds | C15: 0.5-8hrs | D15: 0.3 mg/m3 | F15: 0.015 | O15: Sb, As, Pb, Cr, Co, Cu, Mn, Ni, V and their compounds | Q15: 0.011 | R15: 0.019 | S15: 0.015
A16: Dioxins & Furans (I-TEQ) | C16: 6-8hrs | D16: 0.06 ng/m3 | F16: 0.00165 | O16: Dioxins & Furans (I-TEQ) | Q16: 0.0013 | R16: 0.002 | S16: 0.00165
A17: PCBs (WHO-TEQ Humans / Mammals) | C17: 6-8hrs | D17: None set ng/m3 | F17: 0.0003 | O17: PCBs (WHO-TEQ Humans / Mammals) | Q17: 0.0002 | R17: 0.0004 | S17: 0.0003
A18: PCBs (WHO-TEQ Fish) | C18: 6-8hrs | D18: None set ng/m3 | F18: 2e-05 | O18: PCBs (WHO-TEQ Fish) | Q18: 2e-05 | R18: 2e-05 | S18: 2e-05
A19: PCBs (WHO-TEQ Birds) | C19: 6-8hrs | D19: None set ng/m3 | F19: 0.00135 | O19: PCBs (WHO-TEQ Birds) | Q19: 0.0017 | R19: 0.001 | S19: 0.00135
A20: Dioxins & Furans (WHO-TEQ Humans / Mammals) | C20: 6-8hrs | D20: None set ng/m3 | F20: 0.0016 | O20: Dioxins & Furans (WHO-TEQ Humans / Mammals) | Q20: 0.0012 | R20: 0.002 | S20: 0.0016
A21: Dioxins & Furans (WHO-TEQ Fish) | C21: 6-8hrs | D21: None set ng/m3 | F21: 0.00215 | O21: Dioxins & Furans (WHO-TEQ Fish) | Q21: 0.0013 | R21: 0.003 | S21: 0.00215
A22: Dioxins & Furans (WHO-TEQ Birds) | C22: 6-8hrs | D22: None set ng/m3 | F22: 0.0043 | O22: Dioxins & Furans (WHO-TEQ Birds) | Q22: 0.0036 | R22: 0.005 | S22: 0.0043
A23: Anthanthrene | C23: 6-8hrs | D23: None set µg/m3 | F23: 0.00135 | O23: Anthanthrene | Q23: 0.0014 | R23: 0.0013 | S23: 0.00135
A24: Benzo(a)anthracene | C24: 6-8hrs | D24: None set µg/m3 | F24: 0.00115 | O24: Benzo(a)anthracene | Q24: 0 | R24: 0.0023 | S24: 0.00115
A25: Benzo(a)pyrene | C25: 6-8hrs | D25: None set µg/m3 | F25: 0.00065 | O25: Benzo(a)pyrene | Q25: 0 | R25: 0.0013 | S25: 0.00065
A26: Benzo(b)fluoranthene | C26: 6-8hrs | D26: None set µg/m3 | F26: 0.00065 | O26: Benzo(b)fluoranthene | Q26: 0 | R26: 0.0013 | S26: 0.00065
A27: Benzo(b)naptho(2,1-d) thiophene | C27: 6-8hrs | D27: None set µg/m3 | F27: 0.00135 | O27: Benzo(b)naptho(2,1-d) thiophene | Q27: 0.0014 | R27: 0.0013 | S27: 0.00135
A28: Benzo(c)phenanthrene | C28: 6-8hrs | D28: None set µg/m3 | F28: 0.00135 | O28: Benzo(c)phenanthrene | Q28: 0.0014 | R28: 0.0013 | S28: 0.00135
A29: Benzo(ghi)perylene | C29: 6-8hrs | D29: None set µg/m3 | F29: 0.00185 | O29: Benzo(ghi)perylene | Q29: 0 | R29: 0.0037 | S29: 0.00185
A30: Benzo(k)fluoranthene | C30: 6-8hrs | D30: None set µg/m3 | F30: 0.00135 | O30: Benzo(k)fluoranthene | Q30: 0.0014 | R30: 0.0013 | S30: 0.00135
A31: Cholanthrene | C31: 6-8hrs | D31: None set µg/m3 | F31: 0.00135 | O31: Cholanthrene | Q31: 0.0014 | R31: 0.0013 | S31: 0.00135
A32: Chrysene | C32: 6-8hrs | D32: None set µg/m3 | F32: 0.0013 | O32: Chrysene | Q32: 0 | R32: 0.0026 | S32: 0.0013
A33: Cyclopenta(cd)pyrene | C33: 6-8hrs | D33: None set µg/m3 | F33: 0.00135 | O33: Cyclopenta(cd)pyrene | Q33: 0.0014 | R33: 0.0013 | S33: 0.00135
A34: Dibenzo(ai)pyrene | C34: 6-8hrs | D34: None set µg/m3 | F34: 0.00135 | O34: Dibenzo(ai)pyrene | Q34: 0.0014 | R34: 0.0013 | S34: 0.00135
A35: Dibenzo(ah)anthracene | C35: 6-8hrs | D35: None set µg/m3 | F35: 0.00135 | O35: Dibenzo(ah)anthracene | Q35: 0.0014 | R35: 0.0013 | S35: 0.00135
A36: Fluoranthene | C36: 6-8hrs | D36: None set µg/m3 | F36: 0.06865 | O36: Fluoranthene | Q36: 0.09 | R36: 0.0473 | S36: 0.06865
A37: Indeno(123-cd) pyrene | C37: 6-8hrs | D37: None set µg/m3 | F37: 0.00065 | O37: Indeno(123-cd) pyrene | Q37: 0 | R37: 0.0013 | S37: 0.00065
A38: Naphthalene | C38: 6-8hrs | D38: None set µg/m3 | F38: 0.175 | O38: Naphthalene | Q38: 0.14 | R38: 0.21 | S38: 0.175
A39: Comments :

Sheet Air (CEMS)
A1: =+'Cover Page'!$B$29 -> Annual Performance Report 2024 | I1: =+'Cover Page'!$B$33 -> Peterborough Energy Recovery Facility
A3: Emissions to Air (continuously monitored)
N4: Notes:
A5: Summary of monitoring undertaken, standards used and compliance | N5: Template may require adjustment for any bespoke monitoring requirements of permit
A6: The monitoring standards utilised during this testing conformed to those stipulated within Table S3.1 of the Permit. Viridor note, in line with Permit variation dated 21 April 2015; 30 minute carbon monoxide (CO) average monitoring was replaced with CO 10 minute average monitoring. | N6: Please check that all default ELV values match those for your plant and edit if necessary!
N7: Report to 1 decimal place
A8: The recorded concentrations remained compliant with the limits set out in Permit Tables S3.1 and Tables S4.1 during the review period.
A11: Results of emissions to air that are continuously monitored (maximum and average values for each line) - oxygen reference 11%
A12: Substance | B12: Reference Period | C12: Emission Limit Value | D12: A1
D13: Max. | E13: Avg.
A14: Oxides of nitrogen | B14: Daily mean | C14: 180 mg/m3 | D14: =MAX(NOx!O19) -> 127 | E14: =AVERAGE(NOx!N19) -> 112.893295
B15: ½ hourly mean | C15: 400 mg/m3 | D15: =MAX(NOx!M19) -> 232.4 | E15: =AVERAGE(NOx!L19) -> 112.85
A16: Particulates | B16: Daily mean | C16: 5 mg/m3 | D16: =MAX(Particulates!O19) -> 5.7 | E16: =AVERAGE(Particulates!N19) -> 1.526496648
B17: ½ hourly mean | C17: 30 mg/m3 | D17: =MAX(Particulates!M19) -> 18.9 | E17: =AVERAGE(Particulates!L19) -> 1.55
A18: Total Organic Carbon | B18: Daily mean | C18: 10 mg/m3 | D18: =MAX(TOC!O19) -> 1.9 | E18: =AVERAGE(TOC!N19) -> 0.2309386973
B19: ½ hourly mean | C19: 20 mg/m3 | D19: =MAX(TOC!M19) -> 23.7 | E19: =AVERAGE(TOC!L19) -> 0.275
A20: Hydrogen chloride | B20: Daily mean | C20: 8 mg/m3 | D20: =MAX(HCl!O19) -> 8.2 | E20: =AVERAGE(HCl!N19) -> 6.431489464
B21: ½ hourly mean | C21: 60 mg/m3 | D21: =MAX(HCl!M19) -> 52.7 | E21: =AVERAGE(HCl!L19) -> 6.45
A22: Sulphur dioxide | B22: Daily mean | C22: 40 mg/m3 | D22: =MAX('SO2'!O19) -> 34.8 | E22: =AVERAGE('SO2'!N19) -> 16.7133501
B23: ½ hourly mean | C23: 200 mg/m3 | D23: =MAX('SO2'!M19) -> 337.5 | E23: =AVERAGE('SO2'!L19) -> 16.775
A24: Carbon monoxide | B24: Daily mean | C24: 50 mg/m3 | D24: =MAX('CO 95% 10 min'!Q22) -> 6.5 | E24: =AVERAGE('CO 95% 10 min'!P22) -> 0.5922653257
B25: 95%ile 10-min avg * | C25: 150 mg/m3 * | D25: =MAX('CO 95% 10 min'!M22) -> 8.591666667 | E25: =AVERAGE('CO 95% 10 min'!N22) -> 0.6416666667
A26: Ammonia | B26: Daily mean | C26: 15 mg/m3 | D26: =MAX('NH3'!O19) -> 4.1 | E26: =AVERAGE('NH3'!N19) -> 0.2536398467
A27: * = delete as appropriate, depending on whether your plant has half-hourly or 10-min CO ELVs
A28: Comments :

Sheet HCl
A1: =+'Cover Page'!$B$29 -> Annual Performance Report 2024 | E1: =+'Cover Page'!$B$33 -> Peterborough Energy Recovery Facility
A3: Monitoring of Hydrogen Chloride emissions | D3: Whole Installation | G3: See Notes in Cell Q3 | J3: =+A3 -> Monitoring of Hydrogen Chloride emissions | N3: Per Combustion Line | Q3: Notes:
Q4: User to add logic to complete Whole installation, Table A5:G18. From the data in Per Combustion Line, Table J6:O79, subject to No. of lines installed
A5: =+'Cover Page'!C39 -> 2024 | B5: 1/2 Hourly Reference Periods | E5: Daily Reference Periods
A6: mg/Nm3 | B6: 1/2 hourly HCl ELV | C6: Monthly mean of half-hourly averages | D6: Highest half- hourly average | E6: Daily HCl ELV | F6: Monthly mean of daily averages | G6: Highest daily average | J6: =+A5 -> 2024 | K6: mg/Nm3 | L6: Monthly mean of half-hourly averages | M6: Highest half- hourly average | N6: Monthly mean of daily averages | O6: Highest daily average
A7: Jan | B7: 60 | C7: =L7 -> 6.1 | D7: =M7 -> 22.9 | E7: 8 | F7: =N7 -> 6.1 | G7: =O7 -> 8.2 | J7: A1 | K7: Jan | L7: 6.1 | M7: 22.9 | N7: 6.1 | O7: 8.2
A8: Feb | B8: 60 | C8: =L8 -> 6 | D8: =M8 -> 15.5 | E8: 8 | F8: =N8 -> 5.9 | G8: =O8 -> 7 | K8: Feb | L8: 6 | M8: 15.5 | N8: 5.9 | O8: 7
A9: Mar | B9: 60 | C9: 6.5 | D9: 16.1 | E9: 8 | F9: 6.5 | G9: 7.1 | K9: Mar | L9: 6.5 | M9: 16.1 | N9: 6.5 | O9: 7.1 | Q9: Whole Installation table A5:G18:
A10: Apr | B10: 60 | C10: 6.7 | D10: 17.7 | E10: 8 | F10: 6.6 | G10: 7.3 | K10: Apr | L10: 6.7 | M10: 17.7 | N10: 6.6 | O10: 7.3 | Q10: Mean: for 1/2 hourly and daily periods calculate mean of values across all operational combustion lines for the month
A11: May | B11: 60 | C11: 6.9 | D11: 14.8 | E11: 8 | F11: 6.9 | G11: 7.5 | K11: May | L11: 6.9 | M11: 14.8 | N11: 6.9 | O11: 7.5
A12: Jun | B12: 60 | C12: 6.6 | D12: 12.8 | E12: 8 | F12: 6.6 | G12: 7.2 | K12: Jun | L12: 6.6 | M12: 12.8 | N12: 6.6 | O12: 7.2
A13: Jul | B13: 60 | C13: 6.6 | D13: 18 | E13: 8 | F13: 6.6 | G13: 7.2 | K13: Jul | L13: 6.6 | M13: 18 | N13: 6.6 | O13: 7.2 | Q13: Maximum: for 1/2 hourly and daily periods use the highest value across all operational combustion lines for the month
A14: Aug | B14: 60 | C14: 6.3 | D14: 13.3 | E14: 8 | F14: 6.3 | G14: 7.1 | K14: Aug | L14: 6.3 | M14: 13.3 | N14: 6.3 | O14: 7.1
A15: Sep | B15: 60 | C15: 6.3 | D15: 20.6 | E15: 8 | F15: 6.3 | G15: 7.4 | K15: Sep | L15: 6.3 | M15: 20.6 | N15: 6.3 | O15: 7.4
A16: Oct | B16: 60 | C16: 6.3 | D16: 17.9 | E16: 8 | F16: 6.386206897 | G16: 7.4 | K16: Oct | L16: 6.3 | M16: 17.9 | N16: 6.386206897 | O16: 7.4
A17: Nov | B17: 60 | C17: 6.8 | D17: 52.7 | E17: 8 | F17: 6.591666667 | G17: 7.7 | K17: Nov | L17: 6.8 | M17: 52.7 | N17: 6.591666667 | O17: 7.7
A18: Dec | B18: 60 | C18: 6.3 | D18: 12.6 | E18: 8 | F18: 6.4 | G18: 7.1 | K18: Dec | L18: 6.3 | M18: 12.6 | N18: 6.4 | O18: 7.1
K19: Annual | L19: =AVERAGE(L7:L18) -> 6.45 | M19: =MAX(M7:M18) -> 52.7 | N19: =AVERAGE(N7:N18) -> 6.431489464 | O19: =MAX(O7:O18) -> 8.2
J21: =+A5 -> 2024 | K21: mg/Nm3 | L21: Monthly mean of half-hourly averages | M21: Highest half- hourly average | N21: Monthly mean of daily averages | O21: Highest daily average
J22: A2 | K22: Jan
K23: Feb
K24: Mar
K25: Apr
K26: May
K27: Jun
K28: Jul
K29: Aug
K30: Sep
K31: Oct
K32: Nov
K33: Dec
K34: Annual | L34: =AVERAGE(L22:L33) ->  | M34: =MAX(M22:M33) -> 0 | N34: =AVERAGE(N22:N33) ->  | O34: =MAX(O22:O33) -> 0
J36: =+A5 -> 2024 | K36: mg/Nm3 | L36: Monthly mean of half-hourly averages | M36: Highest half- hourly average | N36: Monthly mean of daily averages | O36: Highest daily average
J37: A3 | K37: Jan
K38: Feb
K39: Mar
K40: Apr
K41: May
K42: Jun
K43: Jul
K44: Aug
K45: Sep
K46: Oct
K47: Nov
A48: Comments : | K48: Dec
K49: Annual | L49: =AVERAGE(L37:L48) ->  | M49: =MAX(M37:M48) -> 0 | N49: =AVERAGE(N37:N48) ->  | O49: =MAX(O37:O48) -> 0
J51: =+A5 -> 2024 | K51: mg/Nm3 | L51: Monthly mean of half-hourly averages | M51: Highest half- hourly average | N51: Monthly mean of daily averages | O51: Highest daily average
J52: A4 | K52: Jan
K53: Feb
K54: May
K55: Jun
K56: Jul
K57: Aug
K58: Sep
K59: Oct
K60: Nov
K61: Dec
K62: Annual | L62: =AVERAGE(L52:L61) ->  | M62: =MAX(M52:M61) -> 0 | N62: =AVERAGE(N52:N61) ->  | O62: =MAX(O52:O61) -> 0
J64: =+A5 -> 2024 | K64: mg/Nm3 | L64: Monthly mean of half-hourly averages | M64: Highest half- hourly average | N64: Monthly mean of daily averages | O64: Highest daily average
J65: A5 | K65: Jan
K66: Feb
K67: Mar
K68: Apr
K69: May
K70: Jun
K71: Jul
K72: Aug
K73: Sep
K74: Oct
K75: Nov
K76: Dec
K77: Annual | L77: =AVERAGE(L65:L76) ->  | M77: =MAX(M65:M76) -> 0 | N77: =AVERAGE(N65:N76) ->  | O77: =MAX(O65:O76) -> 0

Sheet SO2
A1: =+'Cover Page'!$B$29 -> Annual Performance Report 2024 | E1: =+'Cover Page'!$B$33 -> Peterborough Energy Recovery Facility
A3: Monitoring of Sulphur dioxide emissions | D3: Whole Installation | G3: See Notes in Cell Q3 | J3: =+A3 -> Monitoring of Sulphur dioxide emissions | N3: Per Combustion Line | Q3: Notes:
Q4: User to add logic to complete Whole installation, Table A5:G18. From the data in Per Combustion Line, Table J6:O79, subject to No. of lines installed
A5: =+'Cover Page'!C39 -> 2024 | B5: 1/2 Hourly Reference Periods | E5: Daily Reference Periods
A6: mg/Nm3 | B6: 1/2 hourly SO2 ELV | C6: Monthly mean of half-hourly averages | D6: Highest half- hourly average | E6: Daily SO2 ELV | F6: Monthly mean of daily averages | G6: Highest daily average | J6: =+A5 -> 2024 | K6: mg/Nm3 | L6: Monthly mean of half-hourly averages | M6: Highest half- hourly average | N6: Monthly mean of daily averages | O6: Highest daily average
A7: Jan | B7: 200 | C7: =L7 -> 28.3 | D7: =M7 -> 312.4 | E7: 40 | F7: =N7 -> 28.2 | G7: =O7 -> 32.7 | J7: A1 | K7: Jan | L7: 28.3 | M7: 312.4 | N7: 28.2 | O7: 32.7
A8: Feb | B8: 200 | C8: =L8 -> 21.3 | D8: 89.8 | E8: 40 | F8: =N8 -> 21.2 | G8: 34.8 | K8: Feb | L8: 21.3 | M8: 89.8 | N8: 21.2 | O8: 34.8
A9: Mar | B9: 200 | C9: 18.1 | D9: 90.5 | E9: 40 | F9: 18.1 | G9: 26 | K9: Mar | L9: 18.1 | M9: 90.5 | N9: 18.1 | O9: 26 | Q9: Whole Installation table A5:G18:
A10: Apr | B10: 200 | C10: 17.3 | D10: 181.8 | E10: 40 | F10: 17.3 | G10: 30 | K10: Apr | L10: 17.3 | M10: 181.8 | N10: 17.3 | O10: 30 | Q10: Mean: for 1/2 hourly and daily periods calculate mean of values across all operational combustion lines for the month
A11: May | B11: 200 | C11: 18.2 | D11: 233.6 | E11: 40 | F11: 17.9 | G11: 33.3 | K11: May | L11: 18.2 | M11: 233.6 | N11: 17.9 | O11: 33.3
A12: Jun | B12: 200 | C12: 13.3 | D12: 61 | E12: 40 | F12: 13.3 | G12: 21.2 | K12: Jun | L12: 13.3 | M12: 61 | N12: 13.3 | O12: 21.2
A13: Jul | B13: 200 | C13: 16.4 | D13: 134.6 | E13: 40 | F13: 16.1 | G13: 33.4 | K13: Jul | L13: 16.4 | M13: 134.6 | N13: 16.1 | O13: 33.4 | Q13: Maximum: for 1/2 hourly and daily periods use the highest value across all operational combustion lines for the month
A14: Aug | B14: 200 | C14: 15.5 | D14: 53.7 | E14: 40 | F14: 15.5 | G14: 25.3 | K14: Aug | L14: 15.5 | M14: 53.7 | N14: 15.5 | O14: 25.3
A15: Sep | B15: 200 | C15: 16.6 | D15: 337.5 | E15: 40 | F15: 16.4 | G15: 32.9 | K15: Sep | L15: 16.6 | M15: 337.5 | N15: 16.4 | O15: 32.9
A16: Oct | B16: 200 | C16: 10.7 | D16: 90.5 | E16: 40 | F16: 10.83103448 | G16: 14.8 | K16: Oct | L16: 10.7 | M16: 90.5 | N16: 10.83103448 | O16: 14.8
A17: Nov | B17: 200 | C17: 15.2 | D17: 194.1 | E17: 40 | F17: 15.22916667 | G17: 29.3 | K17: Nov | L17: 15.2 | M17: 194.1 | N17: 15.22916667 | O17: 29.3
A18: Dec | B18: 200 | C18: 10.4 | D18: 69.4 | E18: 40 | F18: 10.5 | G18: 14.4 | K18: Dec | L18: 10.4 | M18: 69.4 | N18: 10.5 | O18: 14.4
K19: Annual | L19: =AVERAGE(L7:L18) -> 16.775 | M19: =MAX(M7:M18) -> 337.5 | N19: =AVERAGE(N7:N18) -> 16.7133501 | O19: =MAX(O7:O18) -> 34.8
J21: =+A5 -> 2024 | K21: mg/Nm3 | L21: Monthly mean of half-hourly averages | M21: Highest half- hourly average | N21: Monthly mean of daily averages | O21: Highest daily average
J22: A2 | K22: Jan
K23: Feb
K24: Mar
K25: Apr
K26: May
K27: Jun
K28: Jul
K29: Aug
K30: Sep
K31: Oct
K32: Nov
K33: Dec
K34: Annual | L34: =AVERAGE(L22:L33) ->  | M34: =MAX(M22:M33) -> 0 | N34: =AVERAGE(N22:N33) ->  | O34: =MAX(O22:O33) -> 0
J36: =+A5 -> 2024 | K36: mg/Nm3 | L36: Monthly mean of half-hourly averages | M36: Highest half- hourly average | N36: Monthly mean of daily averages | O36: Highest daily average
J37: A3 | K37: Jan
K38: Feb
K39: Mar
K40: Apr
K41: May
K42: Jun
K43: Jul
K44: Aug
K45: Sep
K46: Oct
K47: Nov
A48: Comments : | K48: Dec
K49: Annual | L49: =AVERAGE(L37:L48) ->  | M49: =MAX(M37:M48) -> 0 | N49: =AVERAGE(N37:N48) ->  | O49: =MAX(O37:O48) -> 0
J51: =+A5 -> 2024 | K51: mg/Nm3 | L51: Monthly mean of half-hourly averages | M51: Highest half- hourly average | N51: Monthly mean of daily averages | O51: Highest daily average
J52: A4 | K52: Jan
K53: Feb
K54: May
K55: Jun
K56: Jul
K57: Aug
K58: Sep
K59: Oct
K60: Nov
K61: Dec
K62: Annual | L62: =AVERAGE(L52:L61) ->  | M62: =MAX(M52:M61) -> 0 | N62: =AVERAGE(N52:N61) ->  | O62: =MAX(O52:O61) -> 0
J64: =+A5 -> 2024 | K64: mg/Nm3 | L64: Monthly mean of half-hourly averages | M64: Highest half- hourly average | N64: Monthly mean of daily averages | O64: Highest daily average
J65: A5 | K65: Jan
K66: Feb
K67: Mar
K68: Apr
K69: May
K70: Jun
K71: Jul
K72: Aug
K73: Sep
K74: Oct
K75: Nov
K76: Dec
K77: Annual | L77: =AVERAGE(L65:L76) ->  | M77: =MAX(M65:M76) -> 0 | N77: =AVERAGE(N65:N76) ->  | O77: =MAX(O65:O76) -> 0

Sheet NOx
A1: =+'Cover Page'!$B$29 -> Annual Performance Report 2024 | E1: =+'Cover Page'!$B$33 -> Peterborough Energy Recovery Facility
A3: Monitoring of Oxides of Nitrogen emissions | D3: Whole Installation | G3: See Notes in Cell Q3 | J3: =+A3 -> Monitoring of Oxides of Nitrogen emissions | N3: Per Combustion Line | Q3: Notes:
Q4: User to add logic to complete Whole installation, Table A5:G18. From the data in Per Combustion Line, Table J6:O79, subject to No. of lines installed
A5: =+'Cover Page'!C39 -> 2024 | B5: 1/2 Hourly Reference Periods | E5: Daily Reference Periods
A6: mg/Nm3 | B6: 1/2 hourly NOx ELV | C6: Monthly mean of half-hourly averages | D6: Highest half- hourly average | E6: Daily NOx ELV | F6: Monthly mean of daily averages | G6: Highest daily average | J6: =+A5 -> 2024 | K6: mg/Nm3 | L6: Monthly mean of half-hourly averages | M6: Highest half- hourly average | N6: Monthly mean of daily averages | O6: Highest daily average
A7: Jan | B7: 400 | C7: =L7 -> 114.1 | D7: =M7 -> 232.4 | E7: 180 | F7: =N7 -> 114.1 | G7: =O7 -> 125.5 | J7: A1 | K7: Jan | L7: 114.1 | M7: 232.4 | N7: 114.1 | O7: 125.5
A8: Feb | B8: 400 | C8: =L8 -> 115.9 | D8: 170.9 | E8: 180 | F8: =N8 -> 116 | G8: 126.3 | K8: Feb | L8: 115.9 | M8: 170.9 | N8: 116 | O8: 126.3
A9: Mar | B9: 400 | C9: 113.9 | D9: 161.9 | E9: 180 | F9: 113.5 | G9: 126.4 | K9: Mar | L9: 113.9 | M9: 161.9 | N9: 113.5 | O9: 126.4 | Q9: Whole Installation table A5:G18:
A10: Apr | B10: 400 | C10: 114.6 | D10: 161.7 | E10: 180 | F10: 114.6 | G10: 124.7 | K10: Apr | L10: 114.6 | M10: 161.7 | N10: 114.6 | O10: 124.7 | Q10: Mean: for 1/2 hourly and daily periods calculate mean of values across all operational combustion lines for the month
A11: May | B11: 400 | C11: 111.7 | D11: 156.8 | E11: 180 | F11: 111.5 | G11: 115.2 | K11: May | L11: 111.7 | M11: 156.8 | N11: 111.5 | O11: 115.2
A12: Jun | B12: 400 | C12: 111.6 | D12: 147.7 | E12: 180 | F12: 111.5 | G12: 116.3 | K12: Jun | L12: 111.6 | M12: 147.7 | N12: 111.5 | O12: 116.3
A13: Jul | B13: 400 | C13: 112.1 | D13: 160.6 | E13: 180 | F13: 112.5 | G13: 115.7 | K13: Jul | L13: 112.1 | M13: 160.6 | N13: 112.5 | O13: 115.7 | Q13: Maximum: for 1/2 hourly and daily periods use the highest value across all operational combustion lines for the month
A14: Aug | B14: 400 | C14: 111.9 | D14: 144.7 | E14: 180 | F14: 111.8 | G14: 112.8 | K14: Aug | L14: 111.9 | M14: 144.7 | N14: 111.8 | O14: 112.8
A15: Sep | B15: 400 | C15: 111.6 | D15: 173.1 | E15: 180 | F15: 111.7 | G15: 112.9 | K15: Sep | L15: 111.6 | M15: 173.1 | N15: 111.7 | O15: 112.9
A16: Oct | B16: 400 | C16: 110.5 | D16: 154.9 | E16: 180 | F16: 110.7862069 | G16: 117.4 | K16: Oct | L16: 110.5 | M16: 154.9 | N16: 110.7862069 | O16: 117.4
A17: Nov | B17: 400 | C17: 112.2 | D17: 146.9 | E17: 180 | F17: 112.3333333 | G17: 114.3 | K17: Nov | L17: 112.2 | M17: 146.9 | N17: 112.3333333 | O17: 114.3
A18: Dec | B18: 400 | C18: 114.1 | D18: 198 | E18: 180 | F18: 114.4 | G18: 127 | K18: Dec | L18: 114.1 | M18: 198 | N18: 114.4 | O18: 127
K19: Annual | L19: =AVERAGE(L7:L18) -> 112.85 | M19: =MAX(M7:M18) -> 232.4 | N19: =AVERAGE(N7:N18) -> 112.893295 | O19: =MAX(O7:O18) -> 127
J21: =+A5 -> 2024 | K21: mg/Nm3 | L21: Monthly mean of half-hourly averages | M21: Highest half- hourly average | N21: Monthly mean of daily averages | O21: Highest daily average
J22: A2 | K22: Jan
K23: Feb
K24: Mar
K25: Apr
K26: May
K27: Jun
K28: Jul
K29: Aug
K30: Sep
K31: Oct
K32: Nov
K33: Dec
K34: Annual | L34: =AVERAGE(L22:L33) ->  | M34: =MAX(M22:M33) -> 0 | N34: =AVERAGE(N22:N33) ->  | O34: =MAX(O22:O33) -> 0
J36: =+A5 -> 2024 | K36: mg/Nm3 | L36: Monthly mean of half-hourly averages | M36: Highest half- hourly average | N36: Monthly mean of daily averages | O36: Highest daily average
J37: A3 | K37: Jan
K38: Feb
K39: Mar
K40: Apr
K41: May
K42: Jun
K43: Jul
K44: Aug
K45: Sep
K46: Oct
K47: Nov
A48: Comments : | K48: Dec
K49: Annual | L49: =AVERAGE(L37:L48) ->  | M49: =MAX(M37:M48) -> 0 | N49: =AVERAGE(N37:N48) ->  | O49: =MAX(O37:O48) -> 0
J51: =+A5 -> 2024 | K51: mg/Nm3 | L51: Monthly mean of half-hourly averages | M51: Highest half- hourly average | N51: Monthly mean of daily averages | O51: Highest daily average
J52: A4 | K52: Jan
K53: Feb
K54: May
K55: Jun
K56: Jul
K57: Aug
K58: Sep
K59: Oct
K60: Nov
K61: Dec
K62: Annual | L62: =AVERAGE(L52:L61) ->  | M62: =MAX(M52:M61) -> 0 | N62: =AVERAGE(N52:N61) ->  | O62: =MAX(O52:O61) -> 0
J64: =+A5 -> 2024 | K64: mg/Nm3 | L64: Monthly mean of half-hourly averages | M64: Highest half- hourly average | N64: Monthly mean of daily averages | O64: Highest daily average
J65: A5 | K65: Jan
K66: Feb
K67: Mar
K68: Apr
K69: May
K70: Jun
K71: Jul
K72: Aug
K73: Sep
K74: Oct
K75: Nov
K76: Dec
K77: Annual | L77: =AVERAGE(L65:L76) ->  | M77: =MAX(M65:M76) -> 0 | N77: =AVERAGE(N65:N76) ->  | O77: =MAX(O65:O76) -> 0

Sheet TOC
A1: =+'Cover Page'!$B$29 -> Annual Performance Report 2024 | E1: =+'Cover Page'!$B$33 -> Peterborough Energy Recovery Facility
A3: Monitoring of Total organic carbon emissions | D3: Whole Installation | G3: See Notes in Cell Q3 | J3: =+A3 -> Monitoring of Total organic carbon emissions | N3: Per Combustion Line | Q3: Notes:
Q4: User to add logic to complete Whole installation, Table A5:G18. From the data in Per Combustion Line, Table J6:O79, subject to No. of lines installed
A5: =+'Cover Page'!C39 -> 2024 | B5: 1/2 Hourly Reference Periods | E5: Daily Reference Periods
A6: mg/Nm3 | B6: 1/2 hourly TOC ELV | C6: Monthly mean of half-hourly averages | D6: Highest half- hourly average | E6: Daily TOC ELV | F6: Monthly mean of daily averages | G6: Highest daily average | J6: =+A5 -> 2024 | K6: mg/Nm3 | L6: Monthly mean of half-hourly averages | M6: Highest half- hourly average | N6: Monthly mean of daily averages | O6: Highest daily average
A7: Jan | B7: 20 | C7: =L7 -> 0.5 | D7: =M7 -> 4.8 | E7: 10 | F7: =N7 -> 0.4 | G7: =O7 -> 1 | J7: A1 | K7: Jan | L7: 0.5 | M7: 4.8 | N7: 0.4 | O7: 1
A8: Feb | B8: 20 | C8: =L8 -> 0.3 | D8: 4.6 | E8: 10 | F8: =N8 -> 0.2 | G8: 0.5 | K8: Feb | L8: 0.3 | M8: 4.6 | N8: 0.2 | O8: 0.5
A9: Mar | B9: 20 | C9: 0.2 | D9: 19.8 | E9: 10 | F9: 0.2 | G9: 0.7 | K9: Mar | L9: 0.2 | M9: 19.8 | N9: 0.2 | O9: 0.7 | Q9: Whole Installation table A5:G18:
A10: Apr | B10: 20 | C10: 0.3 | D10: 2.6 | E10: 10 | F10: 0.2 | G10: 0.6 | K10: Apr | L10: 0.3 | M10: 2.6 | N10: 0.2 | O10: 0.6 | Q10: Mean: for 1/2 hourly and daily periods calculate mean of values across all operational combustion lines for the month
A11: May | B11: 20 | C11: 0.3 | D11: 7.1 | E11: 10 | F11: 0.2 | G11: 0.4 | K11: May | L11: 0.3 | M11: 7.1 | N11: 0.2 | O11: 0.4
A12: Jun | B12: 20 | C12: 0.3 | D12: 3.1 | E12: 10 | F12: 0.2 | G12: 0.5 | K12: Jun | L12: 0.3 | M12: 3.1 | N12: 0.2 | O12: 0.5
A13: Jul | B13: 20 | C13: 0.2 | D13: 23.7 | E13: 10 | F13: 0.2 | G13: 0.6 | K13: Jul | L13: 0.2 | M13: 23.7 | N13: 0.2 | O13: 0.6 | Q13: Maximum: for 1/2 hourly and daily periods use the highest value across all operational combustion lines for the month
A14: Aug | B14: 20 | C14: 0.2 | D14: 15.8 | E14: 10 | F14: 0.1 | G14: 0.7 | K14: Aug | L14: 0.2 | M14: 15.8 | N14: 0.1 | O14: 0.7
A15: Sep | B15: 20 | C15: 0.2 | D15: 13.5 | E15: 10 | F15: 0.2 | G15: 0.6 | K15: Sep | L15: 0.2 | M15: 13.5 | N15: 0.2 | O15: 0.6
A16: Oct | B16: 20 | C16: 0.1 | D16: 4.8 | E16: 10 | F16: 0.1379310345 | G16: 0.5 | K16: Oct | L16: 0.1 | M16: 4.8 | N16: 0.1379310345 | O16: 0.5
A17: Nov | B17: 20 | C17: 0.1 | D17: 2.7 | E17: 10 | F17: 0.1333333333 | G17: 0.4 | K17: Nov | L17: 0.1 | M17: 2.7 | N17: 0.1333333333 | O17: 0.4
A18: Dec | B18: 20 | C18: 0.6 | D18: 18.9 | E18: 10 | F18: 0.6 | G18: 1.9 | K18: Dec | L18: 0.6 | M18: 18.9 | N18: 0.6 | O18: 1.9
K19: Annual | L19: =AVERAGE(L7:L18) -> 0.275 | M19: =MAX(M7:M18) -> 23.7 | N19: =AVERAGE(N7:N18) -> 0.2309386973 | O19: =MAX(O7:O18) -> 1.9
J21: =+A5 -> 2024 | K21: mg/Nm3 | L21: Monthly mean of half-hourly averages | M21: Highest half- hourly average | N21: Monthly mean of daily averages | O21: Highest daily average
J22: A2 | K22: Jan
K23: Feb
K24: Mar
K25: Apr
K26: May
K27: Jun
K28: Jul
K29: Aug
K30: Sep
K31: Oct
K32: Nov
K33: Dec
K34: Annual | L34: =AVERAGE(L22:L33) ->  | M34: =MAX(M22:M33) -> 0 | N34: =AVERAGE(N22:N33) ->  | O34: =MAX(O22:O33) -> 0
J36: =+A5 -> 2024 | K36: mg/Nm3 | L36: Monthly mean of half-hourly averages | M36: Highest half- hourly average | N36: Monthly mean of daily averages | O36: Highest daily average
J37: A3 | K37: Jan
K38: Feb
K39: Mar
K40: Apr
K41: May
K42: Jun
K43: Jul
K44: Aug
K45: Sep
K46: Oct
K47: Nov
A48: Comments : | K48: Dec
K49: Annual | L49: =AVERAGE(L37:L48) ->  | M49: =MAX(M37:M48) -> 0 | N49: =AVERAGE(N37:N48) ->  | O49: =MAX(O37:O48) -> 0
J51: =+A5 -> 2024 | K51: mg/Nm3 | L51: Monthly mean of half-hourly averages | M51: Highest half- hourly average | N51: Monthly mean of daily averages | O51: Highest daily average
J52: A4 | K52: Jan
K53: Feb
K54: May
K55: Jun
K56: Jul
K57: Aug
K58: Sep
K59: Oct
K60: Nov
K61: Dec
K62: Annual | L62: =AVERAGE(L52:L61) ->  | M62: =MAX(M52:M61) -> 0 | N62: =AVERAGE(N52:N61) ->  | O62: =MAX(O52:O61) -> 0
J64: =+A5 -> 2024 | K64: mg/Nm3 | L64: Monthly mean of half-hourly averages | M64: Highest half- hourly average | N64: Monthly mean of daily averages | O64: Highest daily average
J65: A5 | K65: Jan
K66: Feb
K67: Mar
K68: Apr
K69: May
K70: Jun
K71: Jul
K72: Aug
K73: Sep
K74: Oct
K75: Nov
K76: Dec
K77: Annual | L77: =AVERAGE(L65:L76) ->  | M77: =MAX(M65:M76) -> 0 | N77: =AVERAGE(N65:N76) ->  | O77: =MAX(O65:O76) -> 0

Sheet Particulates
A1: =+'Cover Page'!$B$29 -> Annual Performance Report 2024 | E1: =+'Cover Page'!$B$33 -> Peterborough Energy Recovery Facility
A3: Monitoring of Particulate matter emissions | D3: Whole Installation | G3: See Notes in Cell Q3 | J3: =+A3 -> Monitoring of Particulate matter emissions | N3: Per Combustion Line | Q3: Notes:
A5: =+'Cover Page'!C39 -> 2024 | B5: 1/2 Hourly Reference Periods | E5: Daily Reference Periods | Q5: User to add logic to complete Whole installation, Table A5:G18. From the data in Per Combustion Line, Table J6:O79, subject to No. of lines installed
A6: mg/Nm3 | B6: 1/2 hourly PM ELV | C6: Monthly mean of half-hourly averages | D6: Highest half- hourly average | E6: Daily PM ELV | F6: Monthly mean of daily averages | G6: Highest daily average | J6: =+A5 -> 2024 | K6: mg/Nm3 | L6: Monthly mean of half-hourly averages | M6: Highest half- hourly average | N6: Monthly mean of daily averages | O6: Highest daily average
A7: Jan | B7: 30 | C7: =L7 -> 2.1 | D7: =M7 -> 10.5 | E7: 5 | F7: =N7 -> 2.1 | G7: =O7 -> 4.4 | J7: A1 | K7: Jan | L7: 2.1 | M7: 10.5 | N7: 2.1 | O7: 4.4
A8: Feb | B8: 30 | C8: =L8 -> 0.5 | D8: 5.1 | E8: 5 | F8: =N8 -> 0.5 | G8: 1.1 | K8: Feb | L8: 0.5 | M8: 5.1 | N8: 0.5 | O8: 1.1
A9: Mar | B9: 30 | C9: 1.1 | D9: 7.6 | E9: 5 | F9: 1.1 | G9: 2.7 | K9: Mar | L9: 1.1 | M9: 7.6 | N9: 1.1 | O9: 2.7
A10: Apr | B10: 30 | C10: 0.9 | D10: 5.3 | E10: 5 | F10: 0.8 | G10: 1.7 | K10: Apr | L10: 0.9 | M10: 5.3 | N10: 0.8 | O10: 1.7 | Q10: Whole Installation table A5:G18:
A11: May | B11: 30 | C11: 2.6 | D11: 16.2 | E11: 5 | F11: 2.6 | G11: 5.7 | K11: May | L11: 2.6 | M11: 16.2 | N11: 2.6 | O11: 5.7 | Q11: Mean: for 1/2 hourly and daily periods calculate mean of values across all operational combustion lines for the month
A12: Jun | B12: 30 | C12: 3.1 | D12: 14 | E12: 5 | F12: 3.1 | G12: 5 | K12: Jun | L12: 3.1 | M12: 14 | N12: 3.1 | O12: 5
A13: Jul | B13: 30 | C13: 1.7 | D13: 6.3 | E13: 5 | F13: 1.6 | G13: 2.4 | K13: Jul | L13: 1.7 | M13: 6.3 | N13: 1.6 | O13: 2.4
A14: Aug | B14: 30 | C14: 1.4 | D14: 8.2 | E14: 5 | F14: 1.3 | G14: 2.3 | K14: Aug | L14: 1.4 | M14: 8.2 | N14: 1.3 | O14: 2.3 | Q14: Maximum: for 1/2 hourly and daily periods use the highest value across all operational combustion lines for the month
A15: Sep | B15: 30 | C15: 1.5 | D15: 7.9 | E15: 5 | F15: 1.5 | G15: 2.6 | K15: Sep | L15: 1.5 | M15: 7.9 | N15: 1.5 | O15: 2.6
A16: Oct | B16: 30 | C16: 1.3 | D16: 6.9 | E16: 5 | F16: 1.313793103 | G16: 2.3 | K16: Oct | L16: 1.3 | M16: 6.9 | N16: 1.313793103 | O16: 2.3
A17: Nov | B17: 30 | C17: 1.8 | D17: 16.4 | E17: 5 | F17: 1.804166667 | G17: 4.2 | K17: Nov | L17: 1.8 | M17: 16.4 | N17: 1.804166667 | O17: 4.2
A18: Dec | B18: 30 | C18: 0.6 | D18: 18.9 | E18: 5 | F18: 0.6 | G18: 1.9 | K18: Dec | L18: 0.6 | M18: 18.9 | N18: 0.6 | O18: 1.9
K19: Annual | L19: =AVERAGE(L7:L18) -> 1.55 | M19: =MAX(M7:M18) -> 18.9 | N19: =AVERAGE(N7:N18) -> 1.526496648 | O19: =MAX(O7:O18) -> 5.7
J21: =+A5 -> 2024 | K21: mg/Nm3 | L21: Monthly mean of half-hourly averages | M21: Highest half- hourly average | N21: Monthly mean of daily averages | O21: Highest daily average
J22: A2 | K22: Jan
K23: Feb
K24: Mar
K25: Apr
K26: May
K27: Jun
K28: Jul
K29: Aug
K30: Sep
K31: Oct
K32: Nov
K33: Dec
K34: Annual | L34: =AVERAGE(L22:L33) ->  | M34: =MAX(M22:M33) -> 0 | N34: =AVERAGE(N22:N33) ->  | O34: =MAX(O22:O33) -> 0
J36: =+A5 -> 2024 | K36: mg/Nm3 | L36: Monthly mean of half-hourly averages | M36: Highest half- hourly average | N36: Monthly mean of daily averages | O36: Highest daily average
J37: A3 | K37: Jan
K38: Feb
K39: Mar
K40: Apr
K41: May
K42: Jun
K43: Jul
K44: Aug
K45: Sep
K46: Oct
K47: Nov
A48: Comments : | K48: Dec
K49: Annual | L49: =AVERAGE(L37:L48) ->  | M49: =MAX(M37:M48) -> 0 | N49: =AVERAGE(N37:N48) ->  | O49: =MAX(O37:O48) -> 0
J51: =+A5 -> 2024 | K51: mg/Nm3 | L51: Monthly mean of half-hourly averages | M51: Highest half- hourly average | N51: Monthly mean of daily averages | O51: Highest daily average
J52: A4 | K52: Jan
K53: Feb
K54: May
K55: Jun
K56: Jul
K57: Aug
K58: Sep
K59: Oct
K60: Nov
K61: Dec
K62: Annual | L62: =AVERAGE(L52:L61) ->  | M62: =MAX(M52:M61) -> 0 | N62: =AVERAGE(N52:N61) ->  | O62: =MAX(O52:O61) -> 0
J64: =+A5 -> 2024 | K64: mg/Nm3 | L64: Monthly mean of half-hourly averages | M64: Highest half- hourly average | N64: Monthly mean of daily averages | O64: Highest daily average
J65: A5 | K65: Jan
K66: Feb
K67: Mar
K68: Apr
K69: May
K70: Jun
K71: Jul
K72: Aug
K73: Sep
K74: Oct
K75: Nov
K76: Dec
K77: Annual | L77: =AVERAGE(L65:L76) ->  | M77: =MAX(M65:M76) -> 0 | N77: =AVERAGE(N65:N76) ->  | O77: =MAX(O65:O76) -> 0

Sheet CO 0.5 hourly (hidden)
A1: =+'Cover Page'!$B$29 -> Annual Performance Report 2024 | E1: =+'Cover Page'!$B$33 -> Peterborough Energy Recovery Facility
A3: Monitoring of Carbon Monoxide (half hourly) | D3: Whole Installation | G3: See Notes in Cell Q3 | J3: =+A3 -> Monitoring of Carbon Monoxide (half hourly) | N3: Per Combustion Line | Q3: Notes:
A5: Please complete this tab for your plant if you have 1/2 hourly CO ELVs; otherwise, leave it blank and complete the CO 95% 10 min tab
Q7: User to add logic to complete Whole installation, Table A5:G18. From the data in Per Combustion Line, Table J6:O79, subject to No. of lines installed
A8: =+'Cover Page'!C39 -> 2024 | B8: 1/2 Hourly Reference Periods | E8: Daily Reference Periods
A9: mg/Nm3 | B9: 1/2 hourly CO ELV | C9: Monthly mean of half-hourly averages | D9: Highest half- hourly average | E9: Daily CO ELV | F9: Monthly mean of daily averages | G9: Highest daily average | J9: =+A8 -> 2024 | K9: mg/Nm3 | L9: Monthly mean of half-hourly averages | M9: Highest half- hourly average | N9: Monthly mean of daily averages | O9: Highest daily average
A10: Jan | B10: 100 | E10: 50 | J10: A1 | K10: Jan
A11: Feb | B11: =+B10 -> 100 | E11: =+E10 -> 50 | K11: Feb
A12: Mar | B12: =+B11 -> 100 | E12: =+E11 -> 50 | K12: Mar | Q12: Whole Installation table A5:G18:
A13: Apr | B13: 100 | E13: 50 | K13: Apr | Q13: Mean: for 1/2 hourly and daily periods calculate mean of values across all operational combustion lines for the month
A14: May | B14: 100 | E14: 50 | K14: May
A15: Jun | B15: 100 | E15: 50 | K15: Jun
A16: Jul | B16: 100 | E16: 50 | K16: Jul | Q16: Maximum: for 1/2 hourly and daily periods use the highest value across all operational combustion lines for the month
A17: Aug | B17: 100 | E17: 50 | K17: Aug
A18: Sep | B18: 100 | E18: 50 | K18: Sep
A19: Oct | B19: 100 | E19: 50 | K19: Oct
A20: Nov | B20: 100 | E20: 50 | K20: Nov
A21: Dec | B21: 100 | E21: 50 | K21: Dec
K22: Annual | L22: =AVERAGE(L10:L21) ->  | M22: =MAX(M10:M21) -> 0 | N22: =AVERAGE(N10:N21) ->  | O22: =MAX(O10:O21) -> 0
J24: =+A8 -> 2024 | K24: mg/Nm3 | L24: Monthly mean of half-hourly averages | M24: Highest half- hourly average | N24: Monthly mean of daily averages | O24: Highest daily average
J25: A2 | K25: Jan
K26: Feb
K27: Mar
K28: Apr
K29: May
K30: Jun
K31: Jul
K32: Aug
K33: Sep
K34: Oct
K35: Nov
K36: Dec
K37: Annual | L37: =AVERAGE(L25:L36) ->  | M37: =MAX(M25:M36) -> 0 | N37: =AVERAGE(N25:N36) ->  | O37: =MAX(O25:O36) -> 0
J39: =+A8 -> 2024 | K39: mg/Nm3 | L39: Monthly mean of half-hourly averages | M39: Highest half- hourly average | N39: Monthly mean of daily averages | O39: Highest daily average
J40: A3 | K40: Jan
K41: Feb
K42: Mar
K43: Apr
K44: May
K45: Jun
K46: Jul
K47: Aug
K48: Sep
K49: Oct
K50: Nov
A51: Comments : | K51: Dec
K52: Annual | L52: =AVERAGE(L40:L51) ->  | M52: =MAX(M40:M51) -> 0 | N52: =AVERAGE(N40:N51) ->  | O52: =MAX(O40:O51) -> 0
J54: =+A8 -> 2024 | K54: mg/Nm3 | L54: Monthly mean of half-hourly averages | M54: Highest half- hourly average | N54: Monthly mean of daily averages | O54: Highest daily average
J55: A4 | K55: Jan
K56: Feb
K57: Mar
K58: Apr
K59: May
K60: Jun
K61: Jul
K62: Aug
K63: Sep
K64: Oct
K65: Nov
K66: Dec
K67: Annual | L67: =AVERAGE(L55:L66) ->  | M67: =MAX(M55:M66) -> 0 | N67: =AVERAGE(N55:N66) ->  | O67: =MAX(O55:O66) -> 0
J69: =+A8 -> 2024 | K69: mg/Nm3 | L69: Monthly mean of half-hourly averages | M69: Highest half- hourly average | N69: Monthly mean of daily averages | O69: Highest daily average
J70: A5 | K70: Jan
K71: Feb
K72: Mar
K73: Apr
K74: May
K75: Jun
K76: Jul
K77: Aug
K78: Sep
K79: Oct
K80: Nov
K81: Dec
K82: Annual | L82: =AVERAGE(L70:L81) ->  | M82: =MAX(M70:M81) -> 0 | N82: =AVERAGE(N70:N81) ->  | O82: =MAX(O70:O81) -> 0

Sheet CO 95% 10 min
A1: =+'Cover Page'!$B$29 -> Annual Performance Report 2024 | E1: =+'Cover Page'!$B$33 -> Peterborough Energy Recovery Facility
A3: Monitoring of Carbon Monoxide (10-minute avg) | E3: Whole Installation | H3: See Notes in Cell S3 | J3: =+A3 -> Monitoring of Carbon Monoxide (10-minute avg) | O3: Per Combustion Line | Q3: Notes: | S3: Notes:
A5: Please complete this tab for your plant if you have 10-minute average CO ELVs; otherwise, leave it blank and complete the CO 0.5 hourly tab
S7: User to add logic to complete Whole installation, Table A5:H18. From the data in Per Combustion Line, Table K6:Q79, subject to No. of lines installed
A8: =+'Cover Page'!C39 -> 2024 | B8: 10-minute Reference Periods | F8: Daily Reference Periods
A9: mg/Nm3 | B9: 95%ile 10-min avg CO ELV | C9: Highest daily 95%ile 10-min average | D9: Monthly mean of 10-min averages | E9: Highest 10-min average | F9: Daily CO ELV | G9: Monthly mean of daily averages | H9: Highest daily average | K9: =+A8 -> 2024 | L9: mg/Nm3 | M9: Highest daily 95%ile 10-min average | N9: Monthly mean of 10-min averages | O9: Highest 10-min average | P9: Monthly mean of daily averages | Q9: Highest daily average
A10: Jan | B10: 150 | C10: =M10 -> 14.3 | D10: =N10 -> 2.3 | E10: 172.4 | F10: 50 | G10: =P10 -> 2.2 | H10: =Q10 -> 3.9 | K10: A1 | L10: Jan | M10: 14.3 | N10: 2.3 | O10: 172.4 | P10: 2.2 | Q10: 3.9
A11: Feb | B11: =+B10 -> 150 | C11: =M11 -> 5.4 | D11: =N11 -> 0.3 | E11: =O11 -> 202.7 | F11: =+F10 -> 50 | G11: =P11 -> 0.2 | H11: =Q11 -> 1.6 | L11: Feb | M11: 5.4 | N11: 0.3 | O11: 202.7 | P11: 0.2 | Q11: 1.6
A12: Mar | B12: =+B11 -> 150 | C12: 8.8 | D12: 0.5 | E12: 365.7 | F12: =+F11 -> 50 | G12: 0.5 | H12: 6.5 | L12: Mar | M12: 8.8 | N12: 0.5 | O12: 365.7 | P12: 0.5 | Q12: 6.5 | S12: Whole Installation table A5:H18:
A13: Apr | B13: 150 | C13: 8.1 | D13: 0.1 | E13: 39.8 | F13: 50 | G13: 0.1 | H13: 1.2 | L13: Apr | M13: 8.1 | N13: 0.1 | O13: 39.8 | P13: 0.1 | Q13: 1.2 | S13: Mean: for 10-min and daily periods use average of all operational combustion lines.
A14: May | B14: 150 | C14: 10.2 | D14: 0.2 | E14: 92.9 | F14: 50 | G14: 0.2 | H14: 1.3 | L14: May | M14: 10.2 | N14: 0.2 | O14: 92.9 | P14: 0.2 | Q14: 1.3
A15: Jun | B15: 150 | C15: 4 | D15: 0.2 | E15: 139.6 | F15: 50 | G15: 0.2 | H15: 1.5 | L15: Jun | M15: 4 | N15: 0.2 | O15: 139.6 | P15: 0.2 | Q15: 1.5
A16: Jul | B16: 150 | C16: 3.5 | D16: 0.4 | E16: 483.6 | F16: 50 | G16: 0.3 | H16: 3.5 | L16: Jul | M16: 3.5 | N16: 0.4 | O16: 483.6 | P16: 0.3 | Q16: 3.5 | S16: Maximum: for 10-min and daily periods use the highest of all operational combustion lines in any month.
A17: Aug | B17: 150 | C17: 3.2 | D17: 0.4 | E17: 299.2 | F17: 50 | G17: 0.4 | H17: 2.5 | L17: Aug | M17: 3.2 | N17: 0.4 | O17: 299.2 | P17: 0.4 | Q17: 2.5
A18: Sep | B18: 150 | C18: 16.1 | D18: 0.6 | E18: 255.6 | F18: 50 | G18: 0.5 | H18: 4.9 | L18: Sep | M18: 16.1 | N18: 0.6 | O18: 255.6 | P18: 0.5 | Q18: 4.9
A19: Oct | B19: 150 | C19: 11.8 | D19: 0.7 | E19: 412.1 | F19: 50 | G19: 0.5655172414 | H19: 3.6 | L19: Oct | M19: 11.8 | N19: 0.7 | O19: 412.1 | P19: 0.5655172414 | Q19: 3.6
A20: Nov | B20: 150 | C20: 10.7 | D20: 0.8 | E20: 353.3 | F20: 50 | G20: 0.9416666667 | H20: 4 | L20: Nov | M20: 10.7 | N20: 0.8 | O20: 353.3 | P20: 0.9416666667 | Q20: 4
A21: Dec | B21: 150 | C21: 7 | D21: 1.2 | E21: 332.9 | F21: 50 | G21: 1 | H21: 4.3 | L21: Dec | M21: 7 | N21: 1.2 | O21: 332.9 | P21: 1 | Q21: 4.3
L22: Annual | M22: =AVERAGE(M10:M21) -> 8.591666667 | N22: =AVERAGE(N10:N21) -> 0.6416666667 | O22: =MAX(O10:O21) -> 483.6 | P22: =AVERAGE(P10:P21) -> 0.5922653257 | Q22: =MAX(Q10:Q21) -> 6.5
K24: =+A8 -> 2024 | L24: mg/Nm3 | M24: Highest daily 95%ile 10-min average | N24: Monthly mean of 10-min averages | O24: Highest 10-min average | P24: Monthly mean of daily averages | Q24: Highest daily average
K25: A2 | L25: Jan
L26: Feb
L27: Mar
L28: Apr
L29: May
L30: Jun
L31: Jul
L32: Aug
L33: Sep
L34: Oct
L35: Nov
L36: Dec
L37: Annual | M37: =AVERAGE(M25:M36) ->  | O37: =MAX(O25:O36) -> 0 | P37: =AVERAGE(P25:P36) ->  | Q37: =MAX(Q25:Q36) -> 0
K39: =+A8 -> 2024 | L39: mg/Nm3 | M39: Highest daily 95%ile 10-min average | N39: Monthly mean of 10-min averages | O39: Highest 10-min average | P39: Monthly mean of daily averages | Q39: Highest daily average
K40: A3 | L40: Jan
L41: Feb
L42: Mar
L43: Apr
L44: May
L45: Jun
L46: Jul
L47: Aug
L48: Sep
L49: Oct
L50: Nov
A51: Comments : | L51: Dec
A52: Environment Agency explanatory note: The 10-minute average ELV is based on the “95th percentile”. In this case this means that 95% of the 10 minute averages in the relevant 24-hour period (i.e. 137) must be below 150 mg/Nm3, and 5% (i.e. 7) are allowed to be any value above 150 mg/Nm3. Whilst we expect operators to minimise CO emissions at all times, it is perfectly acceptable for the value of the maximum 10-minute average to be above 150 mg/Nm3, provided the 95th percentile ELV has been met for that period. | L52: Annual | M52: =AVERAGE(M40:M51) ->  | O52: =MAX(O40:O51) -> 0 | P52: =AVERAGE(P40:P51) ->  | Q52: =MAX(Q40:Q51) -> 0
L54: Feb
L55: Mar
L56: Apr
L57: May
L58: Jun
L59: Jul
L60: Aug
L61: Sep
L62: Oct
L63: Nov
L64: Dec
L65: Annual | M65: =AVERAGE(M54:M64) ->  | O65: =MAX(O54:O64) -> 0 | P65: =AVERAGE(P54:P64) ->  | Q65: =MAX(Q54:Q64) -> 0
K67: =+A8 -> 2024 | L67: mg/Nm3 | M67: 95%ile 10-min avg maximum | N67: Monthly CO 10-min avg mean | O67: 10-min avg maximum | P67: Monthly daily mean | Q67: Monthly daily maximum
K68: A5 | L68: Jan
L69: Feb
L70: Mar
L71: Apr
L72: May
L73: Jun
L74: Jul
L75: Aug
L76: Sep
L77: Oct
L78: Nov
L79: Dec
L80: Annual | M80: =AVERAGE(M68:M79) ->  | O80: =MAX(O68:O79) -> 0 | P80: =AVERAGE(P68:P79) ->  | Q80: =MAX(Q68:Q79) -> 0

Sheet NH3
A1: =+'Cover Page'!$B$29 -> Annual Performance Report 2024 | E1: =+'Cover Page'!$B$33 -> Peterborough Energy Recovery Facility
A3: Monitoring of Ammnonia emissions | D3: Whole Installation | G3: See Notes in Cell Q3 | J3: =+A3 -> Monitoring of Ammnonia emissions | N3: Per Combustion Line | Q3: Notes:
Q4: User to add logic to complete Whole installation, Table A5:G18. From the data in Per Combustion Line, Table J6:O79, subject to No. of lines installed
A5: =+'Cover Page'!C39 -> 2024 | B5: 1/2 Hourly Reference Periods | E5: Daily Reference Periods
A6: mg/Nm3 | B6: 1/2 hourly NH3 ELV | C6: Monthly mean of half-hourly averages | D6: Highest half- hourly average | E6: Daily NH3 ELV | F6: Monthly mean of daily averages | G6: Highest daily average | J6: =+A5 -> 2024 | K6: mg/Nm3 | L6: Monthly mean of half-hourly averages | M6: Highest half- hourly average | N6: Monthly mean of daily averages | O6: Highest daily average
A7: Jan | B7: None | C7: =L7 -> 1.4 | D7: =M7 -> 19.8 | E7: 15 | F7: =N7 -> 1.3 | G7: =O7 -> 3.1 | J7: A1 | K7: Jan | L7: 1.4 | M7: 19.8 | N7: 1.3 | O7: 3.1
A8: Feb | B8: =+B7 -> None | C8: =L8 -> 0.3 | D8: 8 | E8: 15 | F8: =N8 -> 0.3 | G8: 1.2 | K8: Feb | L8: 0.3 | M8: 8 | N8: 0.3 | O8: 1.2
A9: Mar | B9: =+B8 -> None | C9: 0.2 | D9: 8.4 | E9: 15 | F9: 0.2 | G9: 1.2 | K9: Mar | L9: 0.2 | M9: 8.4 | N9: 0.2 | O9: 1.2 | Q9: Whole Installation table A5:G18:
A10: Apr | B10: None | C10: 0.2 | D10: 6.2 | E10: 15 | F10: 0.1 | G10: 0.6 | K10: Apr | L10: 0.2 | M10: 6.2 | N10: 0.1 | O10: 0.6 | Q10: Mean: for 1/2 hourly and daily periods calculate mean of values across all operational combustion lines for the month
A11: May | B11: None | C11: 0.3 | D11: 10 | E11: 15 | F11: 0.2 | G11: 1.4 | K11: May | L11: 0.3 | M11: 10 | N11: 0.2 | O11: 1.4
A12: Jun | B12: None | C12: 0.1 | D12: 4.5 | E12: 15 | F12: 0.1 | G12: 0.4 | K12: Jun | L12: 0.1 | M12: 4.5 | N12: 0.1 | O12: 0.4
A13: Jul | B13: None | C13: 0.4 | D13: 16.8 | E13: 15 | F13: 0.3 | G13: 2.3 | K13: Jul | L13: 0.4 | M13: 16.8 | N13: 0.3 | O13: 2.3 | Q13: Maximum: for 1/2 hourly and daily periods use the highest value across all operational combustion lines for the month
A14: Aug | B14: None | C14: 0.1 | D14: 4.2 | E14: 15 | F14: 0 | G14: 0.4 | K14: Aug | L14: 0.1 | M14: 4.2 | N14: 0 | O14: 0.4
A15: Sep | B15: None | C15: 0.3 | D15: 16.1 | E15: 15 | F15: 0.2 | G15: 1.9 | K15: Sep | L15: 0.3 | M15: 16.1 | N15: 0.2 | O15: 1.9
A16: Oct | B16: None | C16: 0.4 | D16: 23 | E16: 15 | F16: 0.3103448276 | G16: 4.1 | K16: Oct | L16: 0.4 | M16: 23 | N16: 0.3103448276 | O16: 4.1
A17: Nov | B17: None | C17: 0 | D17: 3 | E17: 15 | F17: 0.03333333333 | G17: 0.2 | K17: Nov | L17: 0 | M17: 3 | N17: 0.03333333333 | O17: 0.2
A18: Dec | B18: None | C18: 0 | D18: 3.2 | E18: 15 | F18: 0 | G18: 0.1 | K18: Dec | L18: 0 | M18: 3.2 | N18: 0 | O18: 0.1
K19: Annual | L19: =AVERAGE(L7:L18) -> 0.3083333333 | M19: =MAX(M7:M18) -> 23 | N19: =AVERAGE(N7:N18) -> 0.2536398467 | O19: =MAX(O7:O18) -> 4.1
J21: =+A5 -> 2024 | K21: mg/Nm3 | L21: Monthly mean of half-hourly averages | M21: Highest half- hourly average | N21: Monthly mean of daily averages | O21: Highest daily average
J22: A2 | K22: Jan
K23: Feb
K24: Mar
K25: Apr
K26: May
K27: Jun
K28: Jul
K29: Aug
K30: Sep
K31: Oct
K32: Nov
K33: Dec
K34: Annual | L34: =AVERAGE(L22:L33) ->  | M34: =MAX(M22:M33) -> 0 | N34: =AVERAGE(N22:N33) ->  | O34: =MAX(O22:O33) -> 0
J36: =+A5 -> 2024 | K36: mg/Nm3 | L36: Monthly mean of half-hourly averages | M36: Highest half- hourly average | N36: Monthly mean of daily averages | O36: Highest daily average
J37: A3 | K37: Jan
K38: Feb
K39: Mar
K40: Apr
K41: May
K42: Jun
K43: Jul
K44: Aug
K45: Sep
K46: Oct
K47: Nov
A48: Comments : | K48: Dec
A49: An indicated ELV value of zero in the table above means that no ammonia limit is/was set in the permit. | K49: Annual | L49: =AVERAGE(L37:L48) ->  | M49: =MAX(M37:M48) -> 0 | N49: =AVERAGE(N37:N48) ->  | O49: =MAX(O37:O48) -> 0
J51: =+A5 -> 2024 | K51: mg/Nm3 | L51: Monthly mean of half-hourly averages | M51: Highest half- hourly average | N51: Monthly mean of daily averages | O51: Highest daily average
J52: A4 | K52: Jan
K53: Feb
K54: May
K55: Jun
K56: Jul
K57: Aug
K58: Sep
K59: Oct
K60: Nov
K61: Dec
K62: Annual | L62: =AVERAGE(L52:L61) ->  | M62: =MAX(M52:M61) -> 0 | N62: =AVERAGE(N52:N61) ->  | O62: =MAX(O52:O61) -> 0
J64: =+A5 -> 2024 | K64: mg/Nm3 | L64: Monthly mean of half-hourly averages | M64: Highest half- hourly average | N64: Monthly mean of daily averages | O64: Highest daily average
J65: A5 | K65: Jan
K66: Feb
K67: Mar
K68: Apr
K69: May
K70: Jun
K71: Jul
K72: Aug
K73: Sep
K74: Oct
K75: Nov
K76: Dec
K77: Annual | L77: =AVERAGE(L65:L76) ->  | M77: =MAX(M65:M76) -> 0 | N77: =AVERAGE(N65:N76) ->  | O77: =MAX(O65:O76) -> 0

Sheet Template changes log
A1: Log of changes to template (Environment Agency use only)
A3: Date | B3: Description of change | C3: New version number and date
A4: 2024-01-16 | B4: Air (periodic) tab: corrected default O2 reference from 6 to 11% | C4: Version 23.5a (for incinerators) - 16/01/2024
A5: 2024-09-23 | B5: Air (periodic) tab: corrected symbol for Thallium to Tl
A6: 2024-09-23 | B6: Air (periodic) tab: removed last year's references to different emission limit values applying from 03/12/23 and updated all relevant ELVs
A7: 2024-09-23 | B7: Tabs for continuously monitored pollutants (HCl, SO2 etc.): changed terminology in table headings to improve clarity
A8: 2024-09-23 | B8: Tabs for continuously monitored pollutants (HCl, SO2 etc.): removed last year's references to different emission limit values applying from 03/12/23 and updated all relevant ELVs
A9: 2024-09-23 | B9: Perf 1 tab: updated formula for water usage to report m3 rather than litres and corrected error with formula copying operator name
A10: 2024-09-23 | B10: Operational Summary tab: table added on start-up's and shut-downs
A11: 2024-09-23 | B11: Operational Summary tab: table added on dioxins and mercury protocols
A12: 2024-09-23 | B12: Operational Summary tab: table added on AST, QAL 2 and calibration functions
A13: 2024-09-23 | B13: CO2 N2O tab: various changes made to notes to reflect the fact that most plants should now have calibrated CEMS and flow meters + some have C14 samplers and more up to date industry data | C13: Version 24a (for incinerators) - 23/09/24
A14: 2024-01-08 | B14: CO2 N2O tab: Changed the N2O CO2 equivalence factor from 298 to 265 in line with recently updated government greenhouse gas figures: https://www.gov.uk/government/publications/greenhouse-gas-reporting-conversion-factors-2024
A15: 2024-01-08 | B15: CO2 N2O tab: Added an additional requirement for municipal EfW plants to state the yearly average biogenic percentage of the waste by mass, and reference to a document which sets out a methodology for calculating NCV of waste from the results of C14 sampling.
A16: 2024-01-08 | B16: Permit Compliance tab: Two additional columns added + explanatory notes to the table entitled "Summary of non-compliances under the permit" to allow CCS scores to be stated where relevant.
A17: 2024-01-08 | B17: Residue Quality tab: Note added explaining application of TOC and LOI limits and asking operators to report both metrics where measured. | C17: Version 24.1a (for incinerators) - 08/11/24
